Cogmind - Beta 16 @@@ ROGUE MODE // 2025.11.20 @ 05:58:58 Player: cptwinky Result: Defending 0bPrime! Performance ------------- Evolutions (8) 4000 Regions Visited (29) 5800 Robots Destroyed (288) 1440 Value Destroyed (10496) 10496 Prototype IDs (168) 3360 Alien Tech Used (4) 800 Bonus (35726) 35726 TOTAL SCORE: 61622 Bonus ------- High Alert Combat Kills 667 Follower Combat Kills 527 Destroyed Unchained 1000 Registered with UFD 300 Met Optimus in HQ 500 Met Imprinter 300 Met Warlord at Base 500 MAIN.C Attacked Warlord 500 Warlord Defense Kills 220 Hacked Protovariant 500 Destroyed Superfortress 15000 Met Optimus at Protoforge 1000 Executed Drillbomb Mission 10000 Optimus Survived to 0b1 3000 Win 3000 Friendly Fire -1288 Cogmind --------- Core Integrity 559/1450 Matter 300/300 Energy 350/350 System Corruption 2% Temperature Cool (0) Movement Flying (32) Location 0bPrime Parts ------- > --- POWER (2) -------- Improved Quantum Reactor > --- PROPULSION (7) --- Impulse Thruster Array Impulse Thruster Array Impulse Thruster Array Cooled Q-thruster > --- UTILITY (12) ----- Experimental Heat Sink Large Storage Unit Experimental Optical Array Long-range Sensor Array Experimental Signal Interpreter Advanced Target Analyzer Experimental Core Analyzer Experimental Core Analyzer Improved Core Shielding Makeshift Medium Armor Plating > --- WEAPON (2) ------- (None) > --- INVENTORY (15) --- Experimental Energy Well (600) Heavy Quantum Rifle Vortex Driver (4) Mini Smartbomb Launcher Peak State ------------ > --- POWER ------------ Concept Zero-point Core > --- PROPULSION ------- Impulse Thruster Array Impulse Thruster Array Impulse Thruster Array Cooled Q-thruster > --- UTILITY ---------- Experimental Heat Sink Large Storage Unit Experimental Optical Array Long-range Sensor Array Experimental Signal Interpreter Advanced Target Analyzer Experimental Core Analyzer Experimental Core Analyzer Improved Core Shielding Propulsion Shielding Centrium Light Armor Plating Centrium Light Armor Plating > --- WEAPON ----------- Heavy Quantum Rifle Concept XC Strikerail > --- INVENTORY -------- Improved Quantum Reactor Experimental Energy Well Vortex Driver Mini Smartbomb Launcher UFD Drillbomb [Rating: 194] Favorites ----------- Power Improved Ion Engine Engine Improved Ion Engine Power Core Light Nuclear Core Reactor Micro Antimatter Reactor Propulsion Light Treads Treads Light Treads Leg Enhanced Biometal Leg Wheel Wheel Hover Unit Cooled Antigrav System Flight Unit Improved Flight Unit Utility Improved Light Armor Plating Device Experimental Sensor Array Storage Medium Storage Unit Processor Experimental Signal Interpreter Hackware Hacking Suite Protection Improved Light Armor Plating Weapon Shotgun Energy Gun Heavy Quantum Rifle Energy Cannon Compact Ion Cannon Ballistic Gun Shotgun Ballistic Cannon Compact Linear Accelerator Launcher Long-range Missile Launcher Special Weapon Mining Laser Impact Weapon Great Maul Slashing Weapon Makeshift Axe Piercing Weapon CR-A16's Pointy Stick Special Melee Weapon Improved Datajack Build | -11 -10 -10 -9 -9 -9 -8 -8 -8 -8 -8 -6 -6 -6 -6 -6 -6 -5 -5 -5 -5 -4 -4 -4 -3 -3 -3 -2 -2 -2 ------- Run | Yrd Mat Min Mat Min Exi Min Mat Sto Rec Scr Fac Was Fac Low Low Zio Pro Fac Was Fac Fac Upp War Pro Res Qua Res Tes Frg Slots Evolved 16 | . . . 2 . . . 2 . . . 4 . . . . . . 2 . . 2 . . . 2 . 2 . . Power 1 | . . . . . . . . . . . . . . . . . . . . . 1 . . . . . . . . Propulsion 5 | . . . 1 . . . . . . . 2 . . . . . . . . . 1 . . . 1 . . . . Utility 10 | . . . 1 . . . 2 . . . 2 . . . . . . 2 . . . . . . 1 . 2 . . Weapon . | . . . . . . . . . . . . . . . . . . . . . . . . . . . . . . Parts Attached 282 | 6 12 2 18 3 1 1 12 22 . 4 15 5 8 4 2 2 . 10 1 8 40 7 14 3 22 7 7 6 40 Power 33 | 1 1 . 3 . 1 . . 3 . 1 1 . . 1 . . . 1 . 1 5 . 1 1 3 1 1 2 5 Engine 11 | 1 1 . 3 . 1 . . 1 . . 1 . . . . . . . . . 2 . . . . . . . 1 Core 10 | . . . . . . . . 2 . 1 . . . 1 . . . 1 . 1 1 . 1 1 . . . . 1 Reactor 12 | . . . . . . . . . . . . . . . . . . . . . 2 . . . 3 1 1 2 3 Propulsion 73 | 2 1 . 8 1 . 1 2 8 . 1 4 . 1 1 . . . 4 . 4 13 3 6 . 4 2 1 1 5 Treads 27 | 2 1 . 8 1 . 1 2 7 . . . . . . . . . . . . 4 1 . . . . . . . Leg 1 | . . . . . . . . . . . . . . . . . . . . . . . 1 . . . . . . Wheel 5 | . . . . . . . . . . 1 . . . . . . . . . . 4 . . . . . . . . Hover 3 | . . . . . . . . . . . . . . . . . . . . . . . 2 . 1 . . . . Flight 37 | . . . . . . . . 1 . . 4 . 1 1 . . . 4 . 4 5 2 3 . 3 2 1 1 5 Utility 125 | 1 2 1 5 1 . . 7 6 . 1 9 2 5 . 2 1 . 4 1 3 19 4 5 1 13 4 5 2 21 Device 44 | . . . . 1 . . 1 1 . . 2 1 2 . 2 1 . . 1 1 8 1 2 1 9 2 . 1 7 Storage 12 | 1 1 1 . . . . 1 . . . 1 . . . . . . . . . 3 . 1 . . 1 1 . 1 Processor 25 | . 1 . 1 . . . 1 1 . . 3 . . . . . . 1 . . 2 3 1 . 3 . 1 1 6 Hackware 18 | . . . . . . . . 2 . . 3 1 1 . . . . 3 . 1 4 . . . 1 1 1 . . Protection 26 | . . . 4 . . . 4 2 . 1 . . 2 . . . . . . 1 2 . 1 . . . 2 . 7 Artifact . | . . . . . . . . . . . . . . . . . . . . . . . . . . . . . . Weapon 51 | 2 8 1 2 1 . . 3 5 . 1 1 3 2 2 . 1 . 1 . . 3 . 2 1 2 . . 1 9 Energy Gun 1 | . . . . . . . . . . . . . . . . . . . . . . . . . . . . 1 . Energy Cannon 9 | . 2 . . . . . . . . . 1 1 . . . . . . . . 1 . 2 1 1 . . . . Ballistic Gun 18 | 2 3 . 2 . . . 2 3 . 1 . 1 . . . . . 1 . . . . . . . . . . 3 Ballistic Cannon 1 | . . . . . . . . . . . . . . . . . . . . . . . . . . . . . 1 Launcher 12 | . 1 1 . . . . 1 1 . . . 1 1 . . . . . . . 2 . . . . . . . 4 Special Weapon 2 | . 1 . . . . . . . . . . . . . . . . . . . . . . . . . . . 1 Impact Weapon 2 | . . . . . . . . 1 . . . . . 1 . . . . . . . . . . . . . . . Slashing Weapon 2 | . . . . . . . . . . . . . 1 1 . . . . . . . . . . . . . . . Piercing Weapon 2 | . . . . . . . . . . . . . . . . 1 . . . . . . . . 1 . . . . Special Melee Weapon 2 | . 1 . . 1 . . . . . . . . . . . . . . . . . . . . . . . . . Unidentified Prototypes 35 | . . . . 1 . . . 3 . . 1 1 1 . . 1 . 1 . . 2 . 8 . 1 2 1 2 10 Corrupted Parts 2 | . . . . . . . . . . . . 1 . . . . . . . . . . 1 . . . . . . System Corruption 6 | . . . . . . . . . . . . 5 . . . . . . . . . . 1 . . . . . . Parts Lost 97 | . . . 1 . . 1 7 7 . . 3 . . . . . . . . 13 23 . 1 5 15 . . 1 20 Power 17 | . . . 1 . . . 1 . . . 1 . . . . . . . . 2 5 . . 1 3 . . . 3 Propulsion 28 | . . . . . . 1 1 3 . . . . . . . . . . . 5 10 . 1 1 4 . . . 2 Utility 39 | . . . . . . . 2 2 . . 2 . . . . . . . . 5 7 . . 3 7 . . . 11 Weapon 13 | . . . . . . . 3 2 . . . . . . . . . . . 1 1 . . . 1 . . 1 4 Highest Loss Streak 10 | . . . 1 . . 1 4 2 . . 2 . . . . . . . . 5 7 . 1 3 10 . . 1 9 To Critical Strikes . | . . . . . . . . . . . . . . . . . . . . . . . . . . . . . . Average Backups 14 | 2 8 10 18 20 20 19 22 23 23 23 8 9 9 10 10 9 10 9 10 9 6 4 4 5 5 7 9 13 8 Power 1 | . . . 1 1 1 . . 2 2 1 . . . 1 1 1 1 1 1 . . . . . . . . . . Propulsion 3 | 1 1 2 3 7 7 6 6 8 9 8 . . . . . . . . 1 . . . . . . . . 1 . Utility 4 | . 1 2 5 6 6 6 7 7 6 6 4 5 4 4 5 4 5 4 4 3 2 1 1 2 2 3 4 4 3 Weapon 3 | . 4 4 5 4 4 4 5 4 4 5 2 3 2 3 3 3 3 3 3 3 2 2 2 2 1 2 2 3 3 Tool/Special . | . . . . . . . . . . . . . . . . . . . . . . . . . . . . . . Unused Backups 39 | . 5 . 5 . . 1 2 4 . 4 4 1 1 . . 2 . . . . 5 . . . . 3 . 1 1 Power 4 | . . . 2 . . 1 . 1 . . . . . . . . . . . . . . . . . . . . . Propulsion 11 | . 2 . 1 . . . 1 3 . 1 2 . . . . . . . . . . . . . . . . . 1 Utility 10 | . . . 1 . . . . . . 1 2 1 1 . . 2 . . . . 1 . . . . 1 . . . Weapon 12 | . 3 . 1 . . . 1 . . 1 . . . . . . . . . . 4 . . . . 1 . 1 . Tool/Special 2 | . . . . . . . . . . 1 . . . . . . . . . . . . . . . 1 . . . Average Slot Usage (%) 87 | . 96 100 99 100 100 100 95 92 96 76 91 93 92 93 93 93 93 90 88 78 69 48 86 81 64 86 89 87 73 Engine 5 | . 14 14 11 11 11 11 9 4 9 8 3 6 6 . . . . . . . 3 . 7 5 . . . . . Core 1 | . . . . . . . . 4 . . 2 . . 5 6 6 6 5 5 4 1 . . 1 1 . . . 2 Treads 14 | . 28 28 33 33 33 33 26 27 27 10 . . . . . . . . . . 4 3 2 . . . . . . Flight 10 | . . . . . . . . . . . 32 33 33 33 33 33 33 26 23 20 10 2 15 18 12 22 21 21 17 Device 4 | . . . . . . . 6 . . . 4 8 5 6 7 6 6 5 9 5 6 8 7 7 9 15 9 9 8 Storage 7 | . 14 14 11 11 11 11 9 9 9 9 6 6 6 6 6 6 6 5 5 4 3 . . . . 3 4 4 4 Processor 12 | . 10 14 11 11 11 11 9 13 9 9 8 6 6 6 6 6 6 10 11 11 8 16 21 21 20 14 13 13 18 Hackware 9 | . . . . . . . . 5 18 18 19 22 21 20 20 20 20 23 23 20 14 15 15 15 9 13 15 17 5 Protection 6 | . . . 9 10 11 11 15 10 9 9 3 1 5 6 4 6 6 5 1 2 2 . 1 . . . 6 6 6 Ballistic Gun 8 | . 22 28 19 21 12 21 14 15 14 3 1 . . . . . . . . . . . . . . . . . 2 Peak Build Rating 194 | 6 11 12 20 25 21 20 27 33 31 38 63 67 64 67 66 71 71 95 98 96 96 57 113 106 132 141 153 157 194 Average Rating 58 | 4 9 11 18 20 20 19 24 28 30 33 56 59 59 65 65 65 69 82 97 84 70 45 85 101 99 135 146 152 160 On Entrance 58 | . 6 11 12 20 20 20 20 18 31 26 36 58 60 60 66 66 64 69 95 98 55 32 49 104 92 126 139 149 155 Avg Prop Armor Cover (%) 15 | . . . . . . . . 1 . 10 1 . . . . . . . . 4 19 25 13 . 8 . . . . Naked Turns . | . . . . . . . . . . . . . . . . . . . . . . . . . . . . . . Heaviest Build 103 | 13 21 49 56 65 57 57 103 101 97 97 25 30 28 23 23 29 27 26 22 27 46 5 23 22 43 46 56 56 60 Greatest Support 64 | 40 40 40 60 60 60 60 60 60 60 60 25 25 27 25 29 25 27 40 40 40 49 10 42 37 41 56 63 62 64 Greatest Overweight (x) 4 | . . 1 . 1 . . 1 2 1 3 1 1 1 . . 1 1 1 . 1 4 1 2 . 1 . . . 1 Average Overweight (x) . | . . . . . . . . 1 1 2 . . . . . . . . . . . . . . . . . . . Largest Inventory Capacity 25 | 8 10 20 20 20 20 20 25 25 25 25 25 10 10 10 10 10 10 10 10 10 15 5 5 5 5 10 15 15 15 Average Capacity 15 | 7 9 11 20 20 20 20 24 25 25 25 10 10 10 10 10 10 10 10 10 9 11 5 5 5 5 8 12 15 15 Most Carried 25 | 6 10 11 20 20 20 20 25 25 25 25 18 10 10 10 10 10 10 10 10 10 13 5 5 5 5 10 12 15 15 Average Carried 14 | 2 9 10 18 19 19 19 22 23 23 23 8 9 9 9 10 9 9 9 10 9 6 4 4 5 4 7 10 14 11 Final Capacity 25 | 8 10 20 20 20 20 20 25 25 25 25 10 10 10 10 10 10 10 10 10 5 5 5 5 5 5 10 15 15 15 Final Carried 25 | 6 10 11 20 20 20 19 25 23 25 18 9 10 10 10 10 10 10 10 10 4 5 5 5 5 5 10 12 14 4 Class Distribution -------------------- 28% | Mutant 23% | Hacker-Sprinter 13% | Scavenger-Mutant 12% | Commander-Mutant 10% | Hacker-Mutant 4% | Scavenger-Scout 3% | Hacker-Scout 3% | Scavenger-Sprinter Dominant Class ---------------- Mutant | -10/Materials Mutant | -10/Mines Mutant | -9/Materials Mutant | -9/Mines Mutant | -9/Exiles Mutant | -8/Mines Scavenger-Mutant | -8/Materials Mutant | -8/Storage Commander-Mutant | -8/Recycling Commander-Mutant | -8/Scraptown Hacker-Sprinter | -6/Factory Hacker-Sprinter | -6/Waste Hacker-Sprinter | -6/Factory Hacker-Sprinter | -6/Lower Caves Hacker-Sprinter | -6/Lower Caves Hacker-Mutant | -6/Zion Hacker-Sprinter | -5/Proximity Caves Hacker-Sprinter | -5/Factory Hacker-Sprinter | -5/Waste Hacker-Sprinter | -5/Factory Hacker-Mutant | -4/Factory Hacker-Mutant | -4/Upper Caves Hacker-Sprinter | -4/Warlord Hacker-Sprinter | -3/Proximity Caves Hacker-Mutant | -3/Research Hacker-Sprinter | -3/Quarantine Hacker-Scout | -2/Research Hacker-Scout | -2/Testing Scavenger-Scout | -2/Protoforge Resources | -11 -10 -10 -9 -9 -9 -8 -8 -8 -8 -8 -6 -6 -6 -6 -6 -6 -5 -5 -5 -5 -4 -4 -4 -3 -3 -3 -2 -2 -2 ----------- Run | Yrd Mat Min Mat Min Exi Min Mat Sto Rec Scr Fac Was Fac Low Low Zio Pro Fac Was Fac Fac Upp War Pro Res Qua Res Tes Frg Matter Collected 10623 | 225 424 138 1009 375 20 128 469 951 40 34 576 91 236 89 20 55 168 208 . 168 995 257 177 243 105 315 66 175 2866 Remotely . | . . . . . . . . . . . . . . . . . . . . . . . . . . . . . . Salvage Created 11611 | 17 486 59 1798 741 . 157 814 1709 88 . 408 323 87 102 . . 67 728 . 51 1253 147 113 511 194 405 165 69 1119 Parts 607 | 4 43 5 118 31 . 11 42 108 2 . 5 7 3 9 . . 2 18 . 7 45 10 2 21 16 21 14 5 58 Haulers Intercepted 21 | . 2 . 6 . . . 1 5 . . . . . . . . . 2 . . 5 . . . . . . . . Recyclers Shooed 13 | 1 . . 1 2 . . 1 2 . . . . . . . . . 2 . . 2 . . . 1 1 . . . Parts Field Recycled . | . . . . . . . . . . . . . . . . . . . . . . . . . . . . . . Retrieved Matter . | . . . . . . . . . . . . . . . . . . . . . . . . . . . . . . Parts Self-Destructed 19 | . . . . . . . . . . . . . . 5 . . 2 . . . . 1 . 11 . . . . . Prevented 1 | . . . . . . . . . . . . . . . 1 . . . . . . . . . . . . . . Parts Restored . | . . . . . . . . . . . . . . . . . . . . . . . . . . . . . . Kills | -11 -10 -10 -9 -9 -9 -8 -8 -8 -8 -8 -6 -6 -6 -6 -6 -6 -5 -5 -5 -5 -4 -4 -4 -3 -3 -3 -2 -2 -2 ------- Run | Yrd Mat Min Mat Min Exi Min Mat Sto Rec Scr Fac Was Fac Low Low Zio Pro Fac Was Fac Fac Upp War Pro Res Qua Res Tes Frg Combat Hostiles Destroyed 194 | . 14 4 41 13 . 6 18 26 1 . 3 . 4 1 . . . 1 . 4 8 5 1 11 7 . 2 1 23 Melee 8 | . . . . . . . . . . . . . . 1 . . . . . . 1 1 . 2 . . 2 1 . Guns 102 | . 10 1 31 12 . 3 6 24 1 . 1 . . . . . . 1 . . . . . . . . . . 12 Cannons 16 | . . . 5 . . . 3 . . . . . . . . . . . . . 3 . . . 4 . . . 1 AOE 65 | . 4 3 5 1 . 3 9 2 . . . . 4 . . . . . . 4 4 4 . 9 3 . . . 10 Classes Destroyed 22 | 1 5 1 4 1 . 1 . . . . 2 1 . 1 . . . . . . . 1 1 . . . . . 3 Worker 15 | . 2 1 1 1 . . . 2 . . . . . . . . . 1 . . 4 . . . . 1 . . 2 Builder 11 | . . 2 1 1 . . . 1 . . . . . . . . . 2 . . 1 . . . . 1 . . 2 Tunneler 4 | 2 1 . . . . . . . . . . . . . . . . . . . 1 . . . . . . . . Hauler 21 | . 2 . 6 . . . 1 5 . . . . . . . . . 2 . . 5 . . . . . . . . Recycler 17 | . . . 1 3 . . 1 3 1 . 1 . . . . . . 3 . . 2 . . . . 2 . . . Mechanic 5 | . . . 1 . . . . . . . 1 . . . . . . . . . . . 1 . . 1 . . 1 Operator 11 | . 1 . 2 . . . 1 3 . . . . . . . . . . . . 1 . . . . . 1 . 2 Drone 1 | . . . . . . . . . . . . . . . . . . . . . . . . . . . . . 1 Watcher 5 | . . . . . . . . . . . 1 . 1 . . . . . . . . . . . . 1 . . 2 Swarmer 51 | . 3 3 9 . . 3 . 3 . . . . 4 . . . . . . 4 . 5 . 9 3 . . . 5 Saboteur 1 | . . . . . . . . . . . . . . . . . . . . . . . . . . . . . 1 Grunt 73 | . 11 1 21 11 . 2 10 11 . . 1 . . . . . . 1 . . 1 . . 2 . . . . 1 Brawler 5 | . . . 1 1 . . 3 . . . . . . . . . . . . . . . . . . . . . . Duelist 4 | . . . . 2 . . . . . . . . . . . . . . . . . . . . . . . . 2 Sentry 27 | . . . 10 . . . 4 11 1 . 1 . . . . . . . . . . . . . . . . . . Hunter 9 | . . . . . . 1 1 1 . . . . . . . . . . . . 2 . . . . . . . 4 Programmer 14 | . . . . . . . . . . . 1 . . 1 . . . . . . 4 . . . 4 . 2 1 1 Hotshot 4 | . . . . . . . . . . . . . . . . . . . . . . . . . . . . . 4 Decapitator 3 | . . . . . . . . . . . . . . . . . . . . . . . . . . . . . 3 Striker 2 | . . . . . . . . . . . . . . . . . . . . . . . 1 . . . . . 1 Tinkerer 1 | . . . . . . . . . . . . . . 1 . . . . . . . . . . . . . . . Martyr 3 | . . . . . . . . . . . . 3 . . . . . . . . . . . . . . . . . Mutant 1 | . . . . . . . . . . . . . . . . . . . . . . 1 . . . . . . . Best Kill Streak 7 | 2 5 3 7 4 . 4 7 6 1 . 1 . 4 1 . . . 2 . 4 6 5 1 6 3 3 3 1 5 Combat Bots Only 7 | . 3 3 7 4 . 4 4 5 1 . 1 . 4 1 . . . 1 . 4 5 5 1 6 3 . 2 1 5 Max Kills in Single Turn 4 | 1 2 3 2 2 . 3 2 2 1 . 1 1 4 1 . . . 1 . 3 2 4 1 3 2 1 1 1 2 Gunslinging 1 | . . . 1 . . . . . . . . . . . . . . . . . . . . . . . . . . Exploded 4 | . 1 3 2 1 . 3 2 2 . . . . 4 . . . . . . 3 2 4 . 3 2 . . . 2 Melee 1 | . . . . . . . . . . . . . . 1 . . . . . . 1 1 . 1 . . 1 1 . Uniques/NPCs Destroyed 1 | . . . . . . . . . . . . . . . . . . . . . 1 . . . . . . . . 6S-H0T (-4/Factory) Combat | -11 -10 -10 -9 -9 -9 -8 -8 -8 -8 -8 -6 -6 -6 -6 -6 -6 -5 -5 -5 -5 -4 -4 -4 -3 -3 -3 -2 -2 -2 -------- Run | Yrd Mat Min Mat Min Exi Min Mat Sto Rec Scr Fac Was Fac Low Low Zio Pro Fac Was Fac Fac Upp War Pro Res Qua Res Tes Frg Hostile Shots Fired 1550 | . 37 11 110 29 . 22 92 115 5 . 29 . 9 3 . . 4 . . 174 305 10 13 58 205 . 26 58 235 Missed 676 | . 10 3 34 7 . 2 32 43 1 . 10 . 6 2 . . 2 . . 75 134 1 11 26 109 . 15 33 120 Hits 874 | . 27 8 76 22 . 20 60 72 4 . 19 . 3 1 . . 2 . . 99 171 9 2 32 96 . 11 25 115 Melee 11 | . . . . 1 . . . . . . . . . . . . . . . . . . . . . . . . 10 Projectile 863 | . 27 8 76 21 . 20 60 72 4 . 19 . 3 1 . . 2 . . 99 171 9 2 32 96 . 11 25 105 AOE 2 | . . . . . . . . . . . . . . . . . . . . 1 . . . . . . . . 1 Critical Strikes 50 | . . . 1 . . . . 2 . . . . . . . . . . . 9 14 . . 3 3 . 2 2 14 Actively Blocked 5 | . . . . . . . . . . . . . . . . . . . . . 4 . . . . . . . 1 Part Disruptions 1 | . . . . . . . . . . . . . . . . . . . . . . . 1 . . . . . . Damage Taken 17791 | . 326 74 902 312 . 289 1256 1109 59 . 409 . 53 14 . . 38 . . 1893 3636 167 92 713 1993 . 228 592 3636 Core 3900 | . 72 20 124 43 . 46 64 50 . . 60 . . . . . 19 . . 674 860 17 . 227 829 . 69 101 625 Absorbed by Shields 36 | . . . . . . . . . . . . . . . . . . . . 36 . . . . . . . . . Redirected to Shielding 123 | . . . . . . . . . . . . . . . . . . . . . 13 . . . . . . . 110 Ignored by Resistances 9 | . . . . . . . . . . . . . . . . . . . . . . . . . . . . . 9 Regen/Repaired (Parts) 818 | . . . . . . . . . . . 143 . 115 . . 60 . . . 27 155 . 35 . . 188 . 95 . Core Remaining (%) 54 | 100 . 63 . . . 46 . . . 79 . . . . . . 90 . . 32 . . . 4 . 36 . . 38 Volleys Fired 716 | 2 28 6 108 37 . 10 46 82 7 . 22 . 2 . . . 28 31 . 7 51 4 1 13 33 1 . . 197 Largest 2 | 2 2 2 2 2 . 2 2 2 2 . 1 . 1 . . . 1 1 . 1 1 1 1 1 1 1 . . 2 Hottest 132 | 40 100 46 100 46 . 46 85 51 46 . 90 . 90 . . . 90 90 . 90 90 90 100 105 105 105 . . 132 Shots Fired 1013 | 4 47 11 203 71 . 19 81 161 14 . 23 . 2 . . . 28 31 . 7 52 4 1 13 33 1 . . 207 Gun 716 | 4 33 9 159 68 . 18 51 158 14 . 21 . . . . . 16 3 . 3 . . . . . . . . 159 Cannon 193 | . 5 . 31 . . . 19 . . . 2 . 1 . . . 12 28 . 1 43 3 1 7 31 1 . . 8 Launcher 94 | . 8 2 4 3 . 1 11 3 . . . . 1 . . . . . . 3 9 1 . 6 2 . . . 40 Special 10 | . 1 . 9 . . . . . . . . . . . . . . . . . . . . . . . . . . Kinetic 616 | 4 33 9 159 68 . 18 51 158 14 . 21 . . . . . 16 3 . 3 . . . . . . . . 59 Thermal 288 | . 6 . 40 . . . 19 . . . 2 . 1 . . . 12 28 . 1 43 3 . 7 25 1 . . 100 Explosive 94 | . 8 2 4 3 . 1 11 3 . . . . 1 . . . . . . 3 9 1 . 6 2 . . . 40 Electromagnetic . | . . . . . . . . . . . . . . . . . . . . . . . . . . . . . . Entropic 15 | . . . . . . . . . . . . . . . . . . . . . . . 1 . 6 . . . 8 Robot Hit Streak 32 | 3 13 6 32 21 . 7 12 32 17 . 3 . 1 . . . 5 . . 1 6 . . 2 5 . . . 22 Robot Miss Streak 6 | . 3 2 5 4 . 1 3 4 . . 6 . . . . . 2 . . 2 2 . . . 1 . . . 6 Penetration Max 2 | . . . . . . . . . . . . . . . . . 1 2 . . . . . . . . . . 1 Secondary Targets 5 | . . . 3 . . . . 2 . . . . . . . . . . . . . . . . . . . . . Max Gunslinging Chain 1 | . . . 1 . . . . 1 . . . . . . . . . . . . . . . . . . . . . Shots Hit Robots 734 | 3 30 7 148 58 4 16 57 134 13 . 14 7 4 5 . 1 8 15 . 4 68 5 13 8 16 10 6 6 74 Core Hits 506 | 2 35 6 90 34 . 16 52 73 3 . 3 2 5 4 . . 7 8 . 6 37 6 1 14 15 6 3 2 76 Critical Kills 11 | . 1 . 1 . . . . 1 . . 1 1 . . . . . 1 . . . . . . . . . . 5 Critical Parts Destroyed 18 | . . . 3 1 . . . . . . 2 3 . . . . 4 3 . . . . . . . . . . 2 Critical Strikes 43 | . 1 . 4 1 . . . 1 . . 3 4 . . . . 4 5 . . 6 1 . 1 2 1 . 1 8 Destroy 25 | . 1 . 4 1 . . . 1 . . 3 . . . . . 4 4 . . . . . . . . . . 7 Smash 4 | . . . . . . . . . . . . 4 . . . . . . . . . . . . . . . . . Impale 11 | . . . . . . . . . . . . . . . . . . 1 . . 6 1 . 1 . 1 . 1 . Sunder 3 | . . . . . . . . . . . . . . . . . . . . . . . . . 2 . . . 1 Melee Attacks 344 | . . . . 1 4 . . 10 . . 36 7 24 5 14 2 . 28 . 6 73 5 14 11 11 26 20 36 11 Impact 62 | . . . . . . . . 10 . . 34 7 11 . . . . . . . . . . . . . . . . Slashing 30 | . . . . . . . . . . . . . 11 5 14 . . . . . . . . . . . . . . Piercing 215 | . . . . . . . . . . . . . . . . 1 . 27 . 2 65 5 2 11 11 24 20 36 11 Sneak Attacks 72 | . . . . 1 4 . . 3 . . 4 4 . 1 . 1 . 7 . 1 19 4 13 . . 7 2 . 1 Combat Hostiles . | . . . . . . . . . . . . . . . . . . . . . . . . . . . . . . Follow-up Attacks . | . . . . . . . . . . . . . . . . . . . . . . . . . . . . . . Damage Inflicted 30453 | 30 1004 350 3212 1113 . 402 2054 2615 263 . 565 571 404 406 . . 154 919 . 600 3905 693 82 1848 1190 977 459 257 6380 Guns 9744 | 25 444 157 2215 937 . 211 760 2053 207 . 63 . . . . . 126 51 . 6 . . . . . . . . 2489 Cannons 2187 | . 36 . 405 . . . 217 . . . . . . . . . 28 . . . 568 . . . 745 . . . 188 Explosions 10833 | . 521 189 460 161 . 170 1074 231 . . . . 306 . . . . . . 594 1317 403 . 1472 354 . . . 3581 Melee 7353 | . . . . . . . . 234 . . 502 571 98 406 . . . 868 . . 2020 290 82 376 91 977 459 257 122 Ramming 336 | 5 3 4 132 15 . 21 3 97 56 . . . . . . . . . . . . . . . . . . . . Kinetic 8961 | 25 444 157 2215 937 . 211 760 2053 207 . 63 . . . . . 126 51 . 6 . . . . . . . . 1706 Thermal 3168 | . 36 . 405 40 . . 217 . . . . . . . . . 28 . . . 777 . . 445 437 . . . 783 Explosive 10027 | . 452 189 460 121 . 170 1074 231 . . . . 306 . . . . . . 551 1108 403 . 1027 354 . . . 3581 Electromagnetic 112 | . 69 . . . . . . . . . . . . . . . . . . 43 . . . . . . . . . Impact 1394 | . . . . . . . . 234 . . 502 571 61 . . . . . . . . . . . . . . . 26 Slashing 443 | . . . . . . . . . . . . . 37 406 . . . . . . . . . . . . . . . Piercing 5542 | . . . . . . . . . . . . . . . . . . 868 . . 2020 290 82 376 91 977 459 257 122 Entropic 470 | . . . . . . . . . . . . . . . . . . . . . . . . . 308 . . . 162 Highest Corruption 10 | . 1 1 . . . . 1 1 1 . 5 5 3 3 3 3 . . . 7 10 10 10 7 9 9 . . 9 Average Corruption 3 | . 1 1 . . . . 1 1 1 . 4 3 3 3 3 3 . . . 4 8 10 6 2 3 8 . . 7 Corruption Purged 23 | . . . . . . . . . . . 3 7 . . . . . . . . . . . . . 6 . . 7 Corruption Blocked 12 | . . . . . . . . . . . . . . . . . . . . . . . . . . . 2 1 9 Effects 207 | . 2 9 . . . . 2 16 5 . 9 4 13 4 4 . . . . 2 30 16 1 6 10 22 . . 52 Message Errors 58 | . . 3 . . . . 1 8 1 . 3 1 3 . 2 . . . . 1 5 7 . 1 3 6 . . 13 Matter Fused 45 | . . 3 . . . . . 2 1 . 2 1 2 1 1 . . . . . 6 5 . . 1 5 . . 15 Heat Flow Errors 21 | . 2 . . . . . 1 . . . . . 2 1 . . . . . . 5 . 1 2 1 2 . . 4 Energy Discharges 27 | . . 1 . . . . . 2 1 . . . 2 . . . . . . . 2 3 . 1 1 3 . . 11 Parts Rejected 4 | . . . . . . . . . . . . . . . . . . . . 1 . . . . 1 . . . 2 Parts Fused 5 | . . . . . . . . . . . 1 . . 1 . . . . . . 1 . . 1 . 1 . . . Data Loss (minor) 19 | . . . . . . . . 2 2 . 1 2 . . . . . . . . 4 1 . . 1 3 . . 3 Data Loss (major) 12 | . . 1 . . . . . . . . . . 3 1 1 . . . . . 1 . . 1 2 . . . 2 Misfires 3 | . . 1 . . . . . . . . 1 . . . . . . . . . 1 . . . . . . . . Alerts 9 | . . . . . . . . 2 . . 1 . 1 . . . . . . . 2 . . . . 2 . . 1 Misdirections 3 | . . . . . . . . . . . . . . . . . . . . . 3 . . . . . . . . Weapon Failures 1 | . . . . . . . . . . . . . . . . . . . . . . . . . . . . . 1 Overload Shots . | . . . . . . . . . . . . . . . . . . . . . . . . . . . . . . Overflow Damage 1637 | . . 22 . . . . 11 134 . . 214 269 2 10 . . . 221 . 49 228 107 . 180 11 60 . . 119 Projectiles 5 | . . . . . . . . . . . . . . . . . . . . . 5 . . . . . . . . Explosions 428 | . . 22 . . . . 11 . . . . . . . . . . . . 49 62 6 . 159 . . . . 119 Melee 1204 | . . . . . . . . 134 . . 214 269 2 10 . . . 221 . . 161 101 . 21 11 60 . . . Knockbacks 10 | . . . . . . . . . 3 . 2 4 . . . . . . . . . . . . . . . . 1 Impact 10 | . . . . . . . . . 3 . 2 4 . . . . . . . . . . . . . . . . 1 Kinetic . | . . . . . . . . . . . . . . . . . . . . . . . . . . . . . . Secondary . | . . . . . . . . . . . . . . . . . . . . . . . . . . . . . . Self-Inflicted Damage 752 | . 18 . 27 . . . 22 . . . . . . . . . . . . . 444 38 . . 130 . . . 73 Shots 16 | . 2 . 1 . . . 1 . . . . . . . . . . . . . 7 1 . . 2 . . . 2 Rammed 43 | 3 2 1 15 2 . 1 1 13 5 . . . . . . . . . . . . . . . . . . . . Targets Rammed 52 | 4 3 3 17 3 . 1 1 14 6 . . . . . . . . . . . . . . . . . . . . Kicked . | . . . . . . . . . . . . . . . . . . . . . . . . . . . . . . Crushed 9 | 1 1 2 2 1 . . . 1 1 . . . . . . . . . . . . . . . . . . . . Highest Temperature 396 | . 139 1 138 4 . 5 156 26 . . 84 . 174 268 8 . 160 164 54 330 396 8 117 189 352 265 24 28 119 Average Temperature 61 | . 28 1 26 2 . 4 60 8 . . 30 . 63 145 5 . 60 63 36 148 103 4 48 55 76 94 16 11 54 Received Heat Transfer 1998 | . 141 18 354 153 . 63 279 369 18 . . . 9 . . . 18 . . 126 156 . . 36 114 . 9 . 135 Effects 3 | . . . . . . . . . . . . . . . . . . . . . 2 . . . 1 . . . . Energy Bleed 1 | . . . . . . . . . . . . . . . . . . . . . 1 . . . . . . . . Interference 1 | . . . . . . . . . . . . . . . . . . . . . 1 . . . . . . . . Matter Decay 1 | . . . . . . . . . . . . . . . . . . . . . . . . . 1 . . . . Siege Activations . | . . . . . . . . . . . . . . . . . . . . . . . . . . . . . . Martial Activations . | . . . . . . . . . . . . . . . . . . . . . . . . . . . . . . Shielding Activations . | . . . . . . . . . . . . . . . . . . . . . . . . . . . . . . Robots Disrupted . | . . . . . . . . . . . . . . . . . . . . . . . . . . . . . . Combat Hostiles . | . . . . . . . . . . . . . . . . . . . . . . . . . . . . . . Robots Corrupted 6 | . . . . . . . . 1 . . 3 2 . . . . . . . . . . . . . . . . . Combat Hostiles 2 | . . . . . . . . . . . 2 . . . . . . . . . . . . . . . . . . Parts Fried 11 | . . . . . . . . 4 . . 5 2 . . . . . . . . . . . . . . . . . Impact Corruptions 20 | . . . . . . . . 5 . . 10 5 . . . . . . . . . . . . . . . . . Robots Melted . | . . . . . . . . . . . . . . . . . . . . . . . . . . . . . . Combat Hostiles . | . . . . . . . . . . . . . . . . . . . . . . . . . . . . . . Parts Melted 2 | . . 1 . . . . 1 . . . . . . . . . . . . . . . . . . . . . . Heat Transferred 3563 | . 74 . 814 50 . . 444 . . . . . . . . . 37 . . . 634 . . 400 370 . . . 740 Parts Sabotaged 2 | . . . . . . . . . . . . . . . . . . . . . . . . . . . . . 2 Parts Stolen . | . . . . . . . . . . . . . . . . . . . . . . . . . . . . . . Parts Stripped . | . . . . . . . . . . . . . . . . . . . . . . . . . . . . . . Power Chain Reactions . | . . . . . . . . . . . . . . . . . . . . . . . . . . . . . . Alert | -11 -10 -10 -9 -9 -9 -8 -8 -8 -8 -8 -6 -6 -6 -6 -6 -6 -5 -5 -5 -5 -4 -4 -4 -3 -3 -3 -2 -2 -2 ------- Run | Yrd Mat Min Mat Min Exi Min Mat Sto Rec Scr Fac Was Fac Low Low Zio Pro Fac Was Fac Fac Upp War Pro Res Qua Res Tes Frg Maximum Alert Level 4 | . 1 . 2 1 . . . . . . . . . . . . . . . 1 2 . . . 2 1 . 1 4 Low Security (%) 77 | 100 50 100 34 68 . 100 100 100 100 . 100 100 100 . . . . 100 100 78 74 . . . 41 58 100 99 58 Level 1 12 | . 49 . 16 31 . . . . . . . . . . . . . . . 21 25 . . . 54 41 . . 5 Level 2 7 | . . . 49 . . . . . . . . . . . . . . . . . . . . . 3 . . . 5 Level 3 1 | . . . . . . . . . . . . . . . . . . . . . . . . . . . . . 16 Level 4 1 | . . . . . . . . . . . . . . . . . . . . . . . . . . . . . 13 Level 5 . | . . . . . . . . . . . . . . . . . . . . . . . . . . . . . . High Security . | . . . . . . . . . . . . . . . . . . . . . . . . . . . . . . Max Security . | . . . . . . . . . . . . . . . . . . . . . . . . . . . . . . Peak Influence 1479 | 10 311 114 661 256 . 90 185 177 96 . 120 . 179 . . . . 49 4 347 470 . . . 430 263 48 204 1479 Initial 256 | . . 114 31 256 . . 5 24 59 . . . . . . . . 15 4 2 158 . . . 77 229 8 27 114 Average 151 | . 147 20 336 164 . 26 49 82 19 . 19 . 22 . . . . 9 4 110 146 . . . 257 108 14 62 425 Influence Increases 12285 | 10 491 127 1249 511 . 190 575 853 237 . 475 . 497 30 . . 140 174 . 677 1399 110 162 310 952 245 176 512 2183 Destroy 0b10 Robot/C 4240 | . 280 80 820 300 . 120 360 520 120 . 160 . 140 20 . . . 20 . 120 140 100 80 220 140 . 40 20 440 Destroy 0b10 Robot/NC 495 | 10 30 15 60 25 . . 15 70 10 . 25 . 5 . . . 5 40 . 5 75 . 5 10 . 35 5 . 50 Destroy Leader 886 | . 54 10 202 60 . 30 92 160 . . 32 . 32 10 . . . 4 . 22 40 10 . 20 30 4 10 . 64 Allied During Kill 239 | . . . . 16 . . . . 94 . 95 . 27 . . . . . . 5 . . 2 . . . . . . Trap Triggered on 0b10 80 | . . . . 10 . . . . . . 60 . . . . . . . . . . . . . . . . . 10 Successful Hack 527 | . 6 . 74 . . . 14 44 13 . 19 . 93 . . . . 21 . 10 48 . . . 75 70 13 15 12 Select Force Hacks 110 | . 30 . 30 . . . . . . . . . . . . . . . . 50 . . . . . . . . . Disable Machine 930 | . 60 . 15 15 . . 15 30 . . . . 45 . . . . . . 210 195 . . . 30 90 . 90 135 Destroy Structure 1388 | . 31 22 18 25 . 10 79 29 . . 24 . 50 . . . . 44 . 60 166 . . . 92 16 33 42 647 Partial Spotted 270 | . . . . . . . . . . . 30 . 30 . . . . 15 . 15 30 . . . 30 15 45 15 45 Lose Combat Pursuer 3120 | . . . 30 60 . 30 . . . . 30 . 75 . . . 135 30 . 180 705 . 75 60 555 15 30 330 780 Influence Decreases 10806 | 10 196 342 672 939 229 176 532 757 390 . 474 1 466 61 . . 115 186 9 357 1263 377 302 248 658 639 143 356 908 Entered New Map 1950 | . . 181 49 401 229 . 9 33 94 . . 1 . 13 . . . 10 9 2 166 171 193 53 38 180 7 21 90 Time Decay 6211 | 10 196 161 613 498 . 166 303 582 260 . 275 . 224 48 . . 100 153 . 225 522 206 55 145 270 223 136 222 618 Search Patrol Dispatched 400 | . . . . . . . . . . . . . . . . . . . . . 100 . . . 200 100 . . . Lost Part 932 | . . . 10 . . 10 70 60 . . 2 . . . . . . . . 130 230 . 10 50 150 . . 10 200 Lost Ally 430 | . . . . 40 . . . . 36 . 162 . 73 . . . 15 20 . . 20 . 44 . . 10 . 10 . Purge Threat 883 | . . . . . . . 150 82 . . 35 . 169 . . . . 3 . . 225 . . . . 126 . 93 . Squads Dispatched 100 | . 4 . 6 . . . 3 2 . . 6 . 12 . . . . 11 . 7 16 . . . 7 2 9 8 7 Investigation 48 | . 2 . 4 . . . 2 . . . 3 . 8 . . . . 8 . 4 8 . . . 5 . 1 1 2 Extermination 22 | . . . . . . . . . . . 2 . 3 . . . . 2 . 2 4 . . . 1 2 2 3 1 Reinforcement 26 | . 2 . 2 . . . 1 2 . . 1 . 1 . . . . 1 . 1 4 . . . 1 . 3 3 4 Assault 1 | . . . . . . . . . . . . . . . . . . . . . . . . . . . . 1 . Garrison 3 | . . . . . . . . . . . . . . . . . . . . . . . . . . . 3 . . Intercept . | . . . . . . . . . . . . . . . . . . . . . . . . . . . . . . Searches Triggered 4 | . . . . . . . . . . . . . . . . . . . . . 1 . . . 2 1 . . . Unchained Authorized 3 | . . . . . . . . . . . . . . . . . . 1 . 1 1 . . . . . . . . Construction Impeded 1 | . . . . . . . . . . . . . . . . . . . . . . . . . . . . . 1 Haulers Reinforced 4 | . . . . . . . . . . . . . . . . . . 1 . . 1 . . . . . 1 1 . Active Scanning Responses . | . . . . . . . . . . . . . . . . . . . . . . . . . . . . . . Cargo Convoy Interrupts . | . . . . . . . . . . . . . . . . . . . . . . . . . . . . . . Stealth | -11 -10 -10 -9 -9 -9 -8 -8 -8 -8 -8 -6 -6 -6 -6 -6 -6 -5 -5 -5 -5 -4 -4 -4 -3 -3 -3 -2 -2 -2 --------- Run | Yrd Mat Min Mat Min Exi Min Mat Sto Rec Scr Fac Was Fac Low Low Zio Pro Fac Was Fac Fac Upp War Pro Res Qua Res Tes Frg Distress Signals 26 | . . . 6 . . . 1 3 1 . . . . . . . . . . 4 2 . 1 . 2 . 2 1 3 Communications Jammed 2 | . . . . . . . . . . . . . . . . . . . . 1 . . . . 1 . . . . Distress Signals 2 | . . . . . . . . . . . . . . . . . . . . 1 . . . . 1 . . . . Times Spotted 609 | . 17 4 72 19 . 8 27 42 7 . 11 . 15 1 2 . 8 10 5 37 75 5 19 17 45 4 10 30 119 Peak Tracking Total 24 | . 3 3 6 4 . 4 6 6 2 . 3 . 4 1 4 . 3 3 5 14 24 5 17 5 15 1 4 11 15 Tactical Retreats 78 | . . . 1 2 . 1 . . . . 2 . 3 . 1 . 5 2 . 4 10 . 2 4 14 1 2 6 18 ECM-based Alert Blocks 4 | . . . . . . . . . . . . . . . 4 . . . . . . . . . . . . . . Traps | -11 -10 -10 -9 -9 -9 -8 -8 -8 -8 -8 -6 -6 -6 -6 -6 -6 -5 -5 -5 -5 -4 -4 -4 -3 -3 -3 -2 -2 -2 ------- Run | Yrd Mat Min Mat Min Exi Min Mat Sto Rec Scr Fac Was Fac Low Low Zio Pro Fac Was Fac Fac Upp War Pro Res Qua Res Tes Frg Traps Triggered 13 | . 1 . . . . . 1 1 . . 2 . 1 . . . . 1 . 3 1 . . . . 1 . . 1 Indirectly . | . . . . . . . . . . . . . . . . . . . . . . . . . . . . . . Trap Hack Attempts 63 | . . . . . . . 25 . . . 16 . 13 . . . . . . . . . . . . 9 . . . Triggered . | . . . . . . . . . . . . . . . . . . . . . . . . . . . . . . Disarmed 10 | . . . . . . . 2 . . . 1 . 7 . . . . . . . . . . . . . . . . Reprogrammed 15 | . . . . . . . . . . . 12 . 1 . . . . . . . . . . . . 1 . . 1 Reused 8 | . . . . 1 . . . . . . 6 . . . . . . . . . . . . . . . . . 1 Traps Extracted . | . . . . . . . . . . . . . . . . . . . . . . . . . . . . . . Installed 1 | . . . . 1 . . . . . . . . . . . . . . . . . . . . . . . . . Triggered 8 | . . . . 1 . . . . . . 6 . . . . . . . . . . . . . . . . . 1 Machines | -11 -10 -10 -9 -9 -9 -8 -8 -8 -8 -8 -6 -6 -6 -6 -6 -6 -5 -5 -5 -5 -4 -4 -4 -3 -3 -3 -2 -2 -2 ---------- Run | Yrd Mat Min Mat Min Exi Min Mat Sto Rec Scr Fac Was Fac Low Low Zio Pro Fac Was Fac Fac Upp War Pro Res Qua Res Tes Frg Machines Disabled 67 | . 4 . 1 1 . . 1 2 . . . . 3 . 1 . . . . 14 13 . 1 2 2 6 . 6 10 Max in Single Turn 6 | . 2 . 1 1 . . 1 1 . . . . 2 . 1 . . . . 6 6 . 1 2 1 1 . 1 1 Garrison Access 7 | . . . . . . . . 1 . . 1 . 1 . . . . . . 1 . . . . 1 . 1 . 1 Machines Repaired . | . . . . . . . . . . . . . . . . . . . . . . . . . . . . . . Machines Dismantled . | . . . . . . . . . . . . . . . . . . . . . . . . . . . . . . Machines Sabotaged . | . . . . . . . . . . . . . . . . . . . . . . . . . . . . . . Overloaded Fab Kills . | . . . . . . . . . . . . . . . . . . . . . . . . . . . . . . Hacking | -11 -10 -10 -9 -9 -9 -8 -8 -8 -8 -8 -6 -6 -6 -6 -6 -6 -5 -5 -5 -5 -4 -4 -4 -3 -3 -3 -2 -2 -2 --------- Run | Yrd Mat Min Mat Min Exi Min Mat Sto Rec Scr Fac Was Fac Low Low Zio Pro Fac Was Fac Fac Upp War Pro Res Qua Res Tes Frg Machines Accessed 197 | . 3 . 12 1 1 . 10 14 7 2 16 . 30 . 3 . . 18 . 6 19 . 3 . 13 13 7 10 9 Terminals 108 | . 2 . 8 . . . 8 9 6 . 9 . 15 . . . . 9 . 1 10 . . . 6 10 2 7 6 Fabricators 14 | . . . . . . . . . . . 2 . 4 . . . . 2 . 2 3 . . . . . . 1 . Repair Stations 13 | . . . 1 . . . . 2 . . 1 . 2 . . . . . . 2 1 . . . 1 2 . 1 . Recycling Units 29 | . 1 . 1 . . . . 2 1 . 1 . 7 . . . . 7 . . 3 . . . 4 . 1 . 1 Scanalyzers 14 | . . . 2 . . . 2 . . . 2 . 1 . . . . . . . 1 . . . 1 1 2 1 1 Garrison Access 9 | . . . . . . . . 1 . . 1 . 1 . . . . . . 1 1 . . . 1 . 2 . 1 Total Hacks 556 | . 11 . 38 1 1 . 31 30 23 5 50 . 97 . 5 . . 53 . 18 58 . 7 . 29 31 22 24 22 Successful 343 | . 5 . 19 1 1 . 15 16 17 5 36 . 61 . 5 . . 42 . 9 30 . 7 . 16 18 13 13 14 Failed 210 | . 6 . 18 . . . 16 14 6 . 14 . 35 . . . . 11 . 9 27 . . . 13 13 9 11 8 Catastrophic 33 | . 2 . 4 . . . 3 1 . . 3 . 5 . . . . . . . 8 . . . 3 2 . . 2 Database Lockouts 3 | . . . 1 . . . . . . . . . 1 . . . . . . . 1 . . . . . . . . Manual 291 | . 6 . 13 . . . 20 12 20 . 23 . 55 . . . . 40 . 10 31 . . . 14 18 7 10 12 Terminals 344 | . 9 . 25 . . . 27 22 22 . 29 . 61 . . . . 34 . 4 32 . . . 13 22 8 19 17 Fabricators 49 | . . . . . . . . . . . 9 . 15 . . . . 5 . 7 12 . . . . . . 1 . Repair Stations 35 | . . . 1 . . . . 3 . . 4 . 6 . . . . . . 6 4 . . . 4 5 . 2 . Recycling Units 55 | . 2 . 3 . . . . 3 1 . 1 . 12 . . . . 14 . . 6 . . . 9 . 2 . 2 Scanalyzers 41 | . . . 9 . . . 4 . . . 5 . 2 . . . . . . . 2 . . . 2 4 9 2 2 Garrison Access 13 | . . . . . . . . 2 . . 2 . 1 . . . . . . 1 2 . . . 1 . 3 . 1 Terminal Hacks 151 | . 3 . 9 1 1 . 7 13 10 5 13 . 27 . 5 . . 13 . 2 7 . 7 . 5 7 5 6 5 Record 9 | . . . 1 . 1 . . . . 4 . . . . 3 . . . . . . . . . . . . . . Part Schematic 7 | . . . . . . . . 2 1 . 1 . 2 . . . . . . . 1 . . . . . . . . Robot Schematic 1 | . . . . . . . . 1 . . . . . . . . . . . . . . . . . . . . . Robot Analysis 10 | . 3 . 1 . . . . 3 . . . . . . . . . 1 . . . . . . . 1 . 1 . Prototype ID Bank 21 | . . . 2 . . . 2 2 7 . . . 3 . . . . . . . . . 5 . . . . . . Open Door 7 | . . . . 1 . . . 2 . . . . . . 2 . . . . . . . 2 . . . . . . Branch Access Points 6 | . . . . . . . 1 . . . 1 . 1 . . . . 1 . . . . . . 1 . 1 . . Machine Index 1 | . . . . . . . . . . . . . . . . . . . . . . . . . 1 . . . . Terminal Index 4 | . . . . . . . . . 1 . 1 . 1 . . . . 1 . . . . . . . . . . . Fabricator Index 1 | . . . . . . . . . . . 1 . . . . . . . . . . . . . . . . . . Recycling Unit Index 2 | . . . . . . . . . . . . . 1 . . . . . . 1 . . . . . . . . . Scanalyzer Index 2 | . . . 1 . . . 1 . . . . . . . . . . . . . . . . . . . . . . Unreport Threat 16 | . . . . . . . 1 2 . . 2 . 3 . . . . 1 . . 3 . . . . 1 1 2 . Locate Traps 14 | . . . 2 . . . 1 . . . 3 . 4 . . . . . . . . . . . 1 . 1 . 2 Disarm Traps 1 | . . . . . . . . . . . . . 1 . . . . . . . . . . . . . . . . Reprogram Traps 2 | . . . . . . . . . . . 1 . . . . . . . . . . . . . . . . . 1 Dispatch Records 1 | . . . . . . . . . . . . . . . . . . 1 . . . . . . . . . . . Transport Status 1 | . . . 1 . . . . . . . . . . . . . . . . . . . . . . . . . . Recall Investigation 1 | . . . . . . . . . . . . . 1 . . . . . . . . . . . . . . . . Recall Extermination 9 | . . . . . . . . . . . . . 1 . . . . 1 . 1 1 . . . . 1 1 2 1 Hauler Manifests 5 | . . . 1 . . . 1 . . . 1 . 1 . . . . 1 . . . . . . . . . . . Registered Components 4 | . . . . . . . . . . . 1 . 1 . . . . . . . 1 . . . 1 . . . . Registered Prototypes 4 | . . . . . . . . . . . 1 . 1 . . . . 1 . . . . . . . 1 . . . Zone Layout 20 | . . . . . . . . 1 1 . . . 6 . . . . 5 . . 1 . . . 1 3 1 . 1 Proto ID Catalog 1 | . . . . . . . . . . 1 . . . . . . . . . . . . . . . . . . . Protovariant Controls 1 | . . . . . . . . . . . . . . . . . . . . . . . . . . . . 1 . Fabricator Hacks 17 | . . . . . . . . . . . 5 . 4 . . . . 1 . 1 6 . . . . . . . . Network Status 4 | . . . . . . . . . . . 1 . . . . . . 1 . 1 1 . . . . . . . . Load Schematic 7 | . . . . . . . . . . . 2 . 2 . . . . . . . 3 . . . . . . . . Build 6 | . . . . . . . . . . . 2 . 2 . . . . . . . 2 . . . . . . . . Repair Station Hacks 21 | . . . . . . . . . . . 4 . 6 . . . . . . 1 3 . . . 1 4 . 2 . Scan Component 9 | . . . . . . . . . . . 2 . 3 . . . . . . . 1 . . . . 2 . 1 . Repair 9 | . . . . . . . . . . . 2 . 3 . . . . . . . 1 . . . . 2 . 1 . Refit 3 | . . . . . . . . . . . . . . . . . . . . 1 1 . . . 1 . . . . Recycling Unit Hacks 14 | . 1 . 1 . . . . . . . . . 2 . . . . 6 . . 1 . . . 3 . . . . Retrieve Components 14 | . 1 . 1 . . . . . . . . . 2 . . . . 6 . . 1 . . . 3 . . . . Scanalyzer 29 | . . . 5 . . . 4 . . . 5 . 1 . . . . . . . 1 . . . 2 3 6 1 1 Insert Component 9 | . . . 1 . . . 2 . . . 2 . . . . . . . . . . . . . . . 3 1 . Analyze 4 | . . . 1 . . . 1 . . . 2 . . . . . . . . . . . . . . . . . . Retrieve Study 16 | . . . 3 . . . 1 . . . 1 . 1 . . . . . . . 1 . . . 2 3 3 . 1 Garrison Access Hacks 7 | . . . . . . . . 1 . . 1 . 1 . . . . . . 1 . . . . 1 . 1 . 1 Seal Access 7 | . . . . . . . . 1 . . 1 . 1 . . . . . . 1 . . . . 1 . 1 . 1 Unauthorized Hacks 104 | . 1 . 4 . . . 4 2 7 . 8 . 20 . . . . 22 . 4 12 . . . 4 4 1 4 7 Terminals 53 | . . . 3 . . . 4 1 6 . 4 . 6 . . . . 12 . . 5 . . . 1 3 . 2 6 Track 6 | . . . . . . . . . . . . . . . . . . 1 . . 1 . . . . 1 . . 3 Assimilate 11 | . . . . . . . 1 . . . 1 . 3 . . . . 2 . . 2 . . . . 1 . 1 . Botnet 17 | . . . 2 . . . 2 1 1 . 2 . 2 . . . . 2 . . 1 . . . 1 1 . 1 1 Disrupt 3 | . . . . . . . . . . . . . . . . . . 1 . . 1 . . . . . . . 1 Operators 5 | . . . . . . . 1 . . . 1 . 1 . . . . 1 . . . . . . . . . . 1 Skim 10 | . . . . . . . . . 5 . . . . . . . . 5 . . . . . . . . . . . Search 1 | . . . 1 . . . . . . . . . . . . . . . . . . . . . . . . . . Fabricators 21 | . . . . . . . . . . . 3 . 7 . . . . 3 . 3 4 . . . . . . 1 . Prioritize 4 | . . . . . . . . . . . 1 . 2 . . . . . . . 1 . . . . . . . . Liberate 10 | . . . . . . . . . . . 2 . 4 . . . . 2 . 1 . . . . . . . 1 . Haulers 5 | . . . . . . . . . . . . . 1 . . . . 1 . 1 2 . . . . . . . . Overload 1 | . . . . . . . . . . . . . . . . . . . . 1 . . . . . . . . . Recompile 1 | . . . . . . . . . . . . . . . . . . . . . 1 . . . . . . . . Repair Stations 1 | . . . . . . . . . . . . . . . . . . . . 1 . . . . . . . . . Patch 1 | . . . . . . . . . . . . . . . . . . . . 1 . . . . . . . . . Recycling Units 27 | . 1 . 1 . . . . 1 1 . 1 . 7 . . . . 7 . . 3 . . . 3 . 1 . 1 Reject 2 | . . . . . . . . 1 1 . . . . . . . . . . . . . . . . . . . . Tunnel 2 | . 1 . 1 . . . . . . . . . . . . . . . . . . . . . . . . . . Fedlink 23 | . . . . . . . . . . . 1 . 7 . . . . 7 . . 3 . . . 3 . 1 . 1 Scanalyzers 2 | . . . . . . . . . . . . . . . . . . . . . . . . . . 1 . 1 . Researchers 2 | . . . . . . . . . . . . . . . . . . . . . . . . . . 1 . 1 . Garrison Access . | . . . . . . . . . . . . . . . . . . . . . . . . . . . . . . Data Cores Recovered 1 | . . . . . . . . . . . 1 . . . . . . . . . . . . . . . . . . Used . | . . . . . . . . . . . . . . . . . . . . . . . . . . . . . . Hacking Detections 145 | . 2 . 11 . . . 9 10 7 . 10 . 20 . . . . 11 . 5 16 . . . 9 13 6 9 7 Full Trace Events 18 | . 1 . 3 . . . 1 . . . 2 . 1 . . . . 1 . 2 4 . . . 2 . . 1 . Feedback Events 3 | . . . . . . . 1 . . . . . . . . . . . . . 1 . . . 1 . . . . Corruption 2 | . . . . . . . 1 . . . . . . . . . . . . . . . . . 1 . . . . Hackware Fried 1 | . . . . . . . . . . . . . . . . . . . . . 1 . . . . . . . . Feedback Blocked . | . . . . . . . . . . . . . . . . . . . . . . . . . . . . . . Robot Schematics Acquired 4 | . . . . . . . . 1 . . . . . . . 3 . . . . . . . . . . . . . Robots Built . | . . . . . . . . . . . . . . . . . . . . . . . . . . . . . . Authchips . | . . . . . . . . . . . . . . . . . . . . . . . . . . . . . . Time . | . . . . . . . . . . . . . . . . . . . . . . . . . . . . . . Total Robot Build Rating . | . . . . . . . . . . . . . . . . . . . . . . . . . . . . . . Part Schematics Acquired 24 | . . . 1 . . . 1 2 1 . 3 . 2 . . 13 . . . . 1 . . . . . . . . Parts Built 7 | . . . . . . . . . . . 3 . 2 . . . . . . . 2 . . . . . . . . Authchips 3 | . . . . . . . . . . . 1 . 1 . . . . . . . 1 . . . . . . . . Time 324 | . . . . . . . . . . . 72 . 100 . . . . . . . 152 . . . . . . . . Total Part Build Rating 25 | . . . . . . . . . . . 7 . 8 . . . . . . . 10 . . . . . . . . Part Studies Acquired 16 | . . . 3 . . . 1 . . . 1 . 1 . . . . . . . 1 . . . 2 3 3 . 1 Parts Repaired 9 | . . . . . . . . . . . 2 . 3 . . . . . . . 1 . . . . 2 . 1 . Time 453 | . . . . . . . . . . . 89 . 226 . . . . . . . 19 . . . . 65 . 54 . Parts Recycled . | . . . . . . . . . . . . . . . . . . . . . . . . . . . . . . Recycled Matter . | . . . . . . . . . . . . . . . . . . . . . . . . . . . . . . Retrieved Matter . | . . . . . . . . . . . . . . . . . . . . . . . . . . . . . . Retrieved Components 29 | . 1 . 10 . . . . . . . . . 3 . . . . 10 . . 1 . . . 4 . . . . Parts Scanalyzed 4 | . . . 1 . . . 1 . . . 2 . . . . . . . . . . . . . . . . . . Part Schematics Acquired 4 | . . . 1 . . . 1 . . . 2 . . . . . . . . . . . . . . . . . . Parts Damaged . | . . . . . . . . . . . . . . . . . . . . . . . . . . . . . . Bothacking | -11 -10 -10 -9 -9 -9 -8 -8 -8 -8 -8 -6 -6 -6 -6 -6 -6 -5 -5 -5 -5 -4 -4 -4 -3 -3 -3 -2 -2 -2 ------------ Run | Yrd Mat Min Mat Min Exi Min Mat Sto Rec Scr Fac Was Fac Low Low Zio Pro Fac Was Fac Fac Upp War Pro Res Qua Res Tes Frg Used RIF Installer . | . . . . . . . . . . . . . . . . . . . . . . . . . . . . . . Robots Hacked 21 | . . . . 1 4 . . . . . 2 . 1 . . 1 . 1 . 2 4 . 3 . . 2 . . . Non-combat 9 | . . . . 1 3 . . . . . 2 . . . . . . . . 1 2 . . . . . . . . Combat 5 | . . . . . 1 . . . . . . . . . . 1 . . . . . . 3 . . . . . . Robot Hacks Applied 15 | . . . . 1 4 . . . . . 2 . . . . 1 . . . 1 3 . 3 . . . . . . parse_system 9 | . . . . 1 4 . . . . . . . . . . 1 . . . . . . 3 . . . . . . no_distress 2 | . . . . . . . . . . . . . . . . . . . . . 2 . . . . . . . . find_chute 1 | . . . . . . . . . . . 1 . . . . . . . . . . . . . . . . . . find_recycling 3 | . . . . . . . . . . . 1 . . . . . . . . 1 1 . . . . . . . . Manual 7 | . . . . . . . . . . . . . 1 . . . . 1 . 1 2 . . . . 2 . . . Relay Couplers Released . | . . . . . . . . . . . . . . . . . . . . . . . . . . . . . . Fabnet Peak Effective % . | . . . . . . . . . . . . . . . . . . . . . . . . . . . . . . Robots Rewired 12 | . . . . . . . . . 7 . . . . . . . . . . . . . 5 . . . . . . Allies Hacked 1 | . . . . . . . . . . . . . 1 . . . . . . . . . . . . . . . . Hacks Repelled . | . . . . . . . . . . . . . . . . . . . . . . . . . . . . . . Allies | -11 -10 -10 -9 -9 -9 -8 -8 -8 -8 -8 -6 -6 -6 -6 -6 -6 -5 -5 -5 -5 -4 -4 -4 -3 -3 -3 -2 -2 -2 -------- Run | Yrd Mat Min Mat Min Exi Min Mat Sto Rec Scr Fac Was Fac Low Low Zio Pro Fac Was Fac Fac Upp War Pro Res Qua Res Tes Frg Total Allies 57 | . . . . 3 . . . 10 7 . . 20 2 . . 2 . 2 . 2 2 . 5 . . 1 . 1 . Largest Group 18 | . . . . 3 . . . 10 15 14 14 18 9 . . 2 2 2 . 1 2 . 5 . . 1 . 1 . Highest-Rated Group 735 | . . . . 40 . . . 173 252 237 237 735 317 . . 62 62 36 . 49 36 . 294 . . 45 . 26 . Highest-Rated Ally 68 | . . . . 16 . . . 29 29 29 29 50 46 . . 31 31 26 . 49 26 . 68 . . 45 . 26 . Total Orders 8 | . . . . 1 . . . . . 2 . . 3 . . . . 2 . . . . . . . . . . . STAY 4 | . . . . . . . . . . 1 . . 2 . . . . 1 . . . . . . . . . . . FOLLOW 3 | . . . . . . . . . . 1 . . 1 . . . . 1 . . . . . . . . . . . RETURN 1 | . . . . 1 . . . . . . . . . . . . . . . . . . . . . . . . . Ally Attacks 196 | . . . . 23 . . . 2 39 . 73 . 24 . . . 17 . . 5 . . 13 . . . . . . Total Damage 3402 | . . . . 235 . . . . 469 . 966 . 455 . . . 248 . . 458 . . 571 . . . . . . Kills 24 | . . . . 2 . . . . 6 . 7 . 3 . . . . . . 3 . . 3 . . . . . . Allies Corrupted 6 | . . . . . . . . . . . 3 2 . . . . . . . 1 . . . . . . . . . Allies Melted 2 | . . . . . . . . . . . . . . . . . . . . . . . . . . . . . 2 Intel | -11 -10 -10 -9 -9 -9 -8 -8 -8 -8 -8 -6 -6 -6 -6 -6 -6 -5 -5 -5 -5 -4 -4 -4 -3 -3 -3 -2 -2 -2 ------- Run | Yrd Mat Min Mat Min Exi Min Mat Sto Rec Scr Fac Was Fac Low Low Zio Pro Fac Was Fac Fac Upp War Pro Res Qua Res Tes Frg Active Infowar (turns) 10762 | . . . . . . . . 1184 . . 839 173 763 196 218 274 369 600 15 441 20 423 799 356 591 597 372 465 2067 Optics 1855 | . . . . . . . . . . . 333 . . . . . . . . . . . . . . . . . 1522 Sensors 7631 | . . . . . . . . . . . 698 173 763 196 218 274 369 600 15 415 20 335 451 281 327 509 363 302 1322 Terrain 228 | . . . . . . . . . . . . . . . . . . . . . . . . . . . . . 228 Decoding 2773 | . . . . . . . . . . . . . . . . . . . . . . 263 799 356 591 597 167 . . T.N.C. 1184 | . . . . . . . . 1184 . . . . . . . . . . . . . . . . . . . . . Machine Analysis 1741 | . . . . . . . . . . . . . . . . . . . . . . . . . . . 253 465 1023 Jamming 107 | . . . . . . . . . . . . . . . . . . . . 94 . . . . 13 . . . . ECM 42 | . . . . . . . . . . . . . . . 40 . . . . . . . . . 2 . . . . Robot Analysis Total 10 | . 3 . 1 . . . . 3 . . . . . . . . . 1 . . . . . . . 1 . 1 . Derelict Logs Recovered 8 | . . . . 1 . . . . . . . . . 1 2 1 2 . . . . 1 . . . . . . . Drone Launches 1 | . . . . 1 . . . . . . . . . . . . . . . . . . . . . . . . . Drone Recoveries 1 | . . . . 1 . . . . . . . . . . . . . . . . . . . . . . . . . Decoded 0b10 Intel 35 | . . . . . . . . . . . . . . . . . . . . . . . . . 14 18 3 . . Traps 3 | . . . . . . . . . . . . . . . . . . . . . . . . . . 2 1 . . Emergency Access 4 | . . . . . . . . . . . . . . . . . . . . . . . . . 2 2 . . . Items 17 | . . . . . . . . . . . . . . . . . . . . . . . . . 7 9 1 . . Machines 3 | . . . . . . . . . . . . . . . . . . . . . . . . . . 2 1 . . Patrols 6 | . . . . . . . . . . . . . . . . . . . . . . . . . 3 3 . . . Guards 2 | . . . . . . . . . . . . . . . . . . . . . . . . . 2 . . . . Exploration | -11 -10 -10 -9 -9 -9 -8 -8 -8 -8 -8 -6 -6 -6 -6 -6 -6 -5 -5 -5 -5 -4 -4 -4 -3 -3 -3 -2 -2 -2 ------------- Run | Yrd Mat Min Mat Min Exi Min Mat Sto Rec Scr Fac Was Fac Low Low Zio Pro Fac Was Fac Fac Upp War Pro Res Qua Res Tes Frg Turns Passed 23975 | 106 640 873 2549 1335 340 477 1057 2307 1106 1566 957 213 901 206 222 420 369 600 15 602 1443 425 799 356 591 597 372 465 2066 Spaces Moved 27303 | 51 256 500 1261 708 207 247 426 911 450 1007 1379 303 2501 675 700 1021 836 1345 65 850 1980 685 968 725 937 1206 772 1037 3294 Core 594 | 2 . . . . . . . . . . . . . . . . . . . . 74 518 . . . . . . . Treads 5084 | 49 256 500 1261 708 207 247 426 911 450 69 . . . . . . . . . . . . . . . . . . . Legs . | . . . . . . . . . . . . . . . . . . . . . . . . . . . . . . Wheels 1435 | . . . . . . . . . . 938 . . . . . . . . . . 497 . . . . . . . . Hover . | . . . . . . . . . . . . . . . . . . . . . . . . . . . . . . Flight 20190 | . . . . . . . . . . . 1379 303 2501 675 700 1021 836 1345 65 850 1409 167 968 725 937 1206 772 1037 3294 Fastest Speed 17 | 50 160 160 160 160 160 160 160 200 200 145 26 26 26 25 18 25 21 17 17 17 28 50 25 28 32 28 18 17 17 Average Speed 62 | 155 160 165 160 160 160 160 197 205 200 148 27 27 26 25 24 39 25 25 19 27 47 50 45 29 35 28 26 25 29 Slowest Speed 240 | 160 160 240 160 200 160 160 200 240 200 200 99 96 95 26 25 93 93 93 27 105 140 100 212 32 115 35 28 26 95 Overloaded Moves 311 | . . . . . . . . . . . . . . . 2 . 18 10 46 175 . . . . . . 10 19 31 Propulsion Burnouts . | . . . . . . . . . . . . . . . . . . . . . . . . . . . . . . Robots Hopped 110 | . . . . . . . . . . . 3 . 2 . . . 1 11 . 5 17 . 1 4 32 . . 15 19 Potential Cave-ins 44 | . . . . . . . . . . . . . . . . . . . . . 2 . . 3 . . . . 39 Cave-ins Triggered 2 | . . . . . . . . . . . 1 . . . . . . . . . . . . . . . . . 1 Teleports 1 | . . . . . . . . . . . . . . . . . . . . . . . . . . . . . 1 Exploration Rate (%) 67 | 4 42 96 93 98 64 56 44 96 98 83 32 96 53 90 85 85 88 33 71 21 50 74 94 80 30 91 23 86 65 Regions Visited 29 Branch Regions 17 Pre-discovered Areas 11 | . 1 . 1 . 1 . . . 1 . . . 1 1 . 2 1 1 . . . 1 . . . . . . . Known Exits Taken 16 | . . . . . . . 1 . . 1 . . 1 1 1 1 1 . . 1 1 1 1 1 1 1 1 1 . Unknown Exits Taken 9 | 1 1 1 1 1 1 1 . 1 1 . . . . . . . . . . . . . . . . . . . . Scrap Searched 29 | . . 2 . 2 . . . . . 5 . . . 4 3 2 4 . . . . 3 . 4 . . . . . Spaces Dug 379 | . 1 14 18 . . . . 17 . . 23 . 17 . 11 . 4 21 . 11 15 26 . 51 51 9 11 14 65 Terrain Destroyed 977 | . 30 26 19 28 . 12 78 29 . . 24 . 52 . 11 . 10 21 . 24 102 26 1 97 56 9 11 14 297 Melee 131 | . . . . . . . . 5 . . 23 . 17 . 11 . . 8 . 2 10 . . 4 9 8 11 14 9 Projectile 157 | . 1 . 6 . . . . . . . . . 1 . . . 9 13 . 1 10 3 1 6 17 1 . . 88 AOE 687 | . 29 26 13 28 . 12 78 24 . . . . 34 . . . . . . 21 82 23 . 87 30 . . . 200 Terrain Rammed . | . . . . . . . . . . . . . . . . . . . . . . . . . . . . . . Walls Destroyed . | . . . . . . . . . . . . . . . . . . . . . . . . . . . . . . Machines Disabled . | . . . . . . . . . . . . . . . . . . . . . . . . . . . . . . Actions | -11 -10 -10 -9 -9 -9 -8 -8 -8 -8 -8 -6 -6 -6 -6 -6 -6 -5 -5 -5 -5 -4 -4 -4 -3 -3 -3 -2 -2 -2 --------- Run | Yrd Mat Min Mat Min Exi Min Mat Sto Rec Scr Fac Was Fac Low Low Zio Pro Fac Was Fac Fac Upp War Pro Res Qua Res Tes Frg Total 32435 | 69 433 533 1561 835 215 308 555 1153 638 1079 1865 419 2702 699 731 1035 958 1500 65 1193 2286 744 1319 819 1101 1422 908 1169 4121 Wait 2972 | 1 102 13 95 75 . 45 17 65 141 54 335 95 112 10 12 1 90 75 . 292 75 35 307 62 116 141 100 82 424 Move 27076 | 51 255 499 1260 707 206 246 425 910 449 1006 1373 302 2496 674 699 1020 833 1326 64 839 1950 684 965 716 881 1205 771 1008 3256 Hop 90 | . . . . . . . . . . . 3 . 2 . . . 1 8 . 5 12 . 1 4 23 . . 13 18 Pick Up 140 | 6 11 4 24 1 1 1 9 13 . 3 9 3 4 1 . 2 1 1 . . 13 . 1 . . 11 2 7 12 Fast Attach 204 | 6 2 . 2 2 . . 4 9 . 2 5 4 10 2 2 1 . 9 . 7 34 7 14 5 23 10 4 4 36 Attach 90 | . . . 2 . . 1 3 11 . . 16 1 2 . . . . 1 . 4 14 3 1 . 2 3 1 2 23 Detach 99 | . . . 1 . . . 2 5 2 . 11 1 2 . . 1 . 4 . 2 23 4 1 1 5 4 3 2 25 Swap 232 | . 21 5 31 5 3 3 17 18 . 2 15 1 11 4 2 5 4 9 1 10 14 1 5 4 2 4 3 7 25 Drop 208 | . 11 3 21 3 1 1 6 16 . 12 9 5 9 3 2 3 1 8 . 6 27 1 9 3 5 8 4 8 23 Fire 716 | 2 28 6 108 37 . 10 46 82 7 . 22 . 2 . . . 28 31 . 7 51 4 1 13 33 1 . . 197 Melee 344 | . . . . 1 4 . . 10 . . 36 7 24 5 14 2 . 28 . 6 73 5 14 11 11 26 20 36 11 Ram . | . . . . . . . . . . . . . . . . . . . . . . . . . . . . . . Kick . | . . . . . . . . . . . . . . . . . . . . . . . . . . . . . . Crush 51 | 3 3 3 17 3 . 1 1 14 6 . . . . . . . . . . . . . . . . . . . . Escape Stasis 46 | . . . . . . . . . . . 15 . 15 . . . . . . 15 . . . . . . . . 1 Rewire 33 | . . . . . . . . . 33 . . . . . . . . . . . . . . . . . . . . Trap 64 | . . . . 1 . . 25 . . . 16 . 13 . . . . . . . . . . . . 9 . . . Miscellaneous 70 | . . . . . . . . . . . . . . . . . . . . . . . . . . . . . 70 Route ------- -11/Scrapyard -10/Materials -10/Mines (discovered 2 exits: *Mat x2) -9/Materials (discovered 5 exits: *Mat x3 / *Min x2) -9/Mines (discovered 3 exits: *Mat x2 / *Exi) -9/Exiles -8/Mines -8/Materials (discovered 2 exits: [*Fac] / *Sto) -8/Storage (discovered 2 exits: [*Fac] / *Rec) -8/Recycling (discovered 2 exits: *Fac / *Scr) -8/Scraptown (discovered 2 exits: *Fac x2) -6/Factory (discovered 4 exits: Fac x2 / Low x2) -6/Waste -6/Factory (discovered 4 exits: *Fac x2 / *Low x2) -6/Lower Caves -6/Lower Caves (discovered 2 exits: Fac / *Zio) -6/Zion -5/Proximity Caves -5/Factory (discovered 6 exits: *Fac x2 / Upp x2 / *Ext x2) -5/Waste -5/Factory (discovered 3 exits: *Fac / Upp / Ext) -4/Factory (discovered 3 exits: *Res x2 / *Upp) -4/Upper Caves -4/Warlord -3/Proximity Caves -3/Research (discovered 3 exits: Res / *Qua x2) -3/Quarantine -2/Research (discovered 3 exits: [*Acc] / *Tes x2) -2/Testing (discovered 3 exits: [*Acc] / [*Sec] / *Frg) -2/Protoforge 0bPrime History --------- Turn | Location | Event 53 | -11/Scrapyard | Discovered new exit (range 16) 107 | -11/Scrapyard | Entered Materials 321 | -10/Materials | Build established: Mutant 717 | -10/Materials | Discovered new exit (range 13) 747 | -10/Materials | Entered Mines 787 | -10/Mines | Discovered new exit (range 13) 793 | -10/Mines | Met a Derelict bent on vengeance 932 | -10/Mines | Received a Rocket Launcher from a helpful Derelict 1221 | -10/Mines | Found a Scrap Suit stashed away for nefarious purposes 1247 | -10/Mines | Found a damaged Exp. Sensor Array with a note attached 1250 | -10/Mines | Found Prototype Device 1435 | -10/Mines | Met a Derelict testing a Signal Generator 1596 | -10/Mines | Discovered new exit (range 11) 1620 | -10/Mines | Entered Materials 1620 | -9/Materials | Evolved 2 slots: Propulsion x1, Utility x1 2323 | -9/Materials | Discovered new exit (range 16) 2705 | -9/Materials | Discovered new exit (range 15) 2792 | -9/Materials | Destroyed 7 combat bots 2824 | -9/Materials | Identified Exp. Sensor Array 2824 | -9/Materials | Central database locked down 2847 | -9/Materials | Build established: Scavenger-Mutant 3014 | -9/Materials | Discovered new exit (range 8) 3288 | -9/Materials | Discovered new exit (range 16) 3575 | -9/Materials | Discovered new exit (range 16) 3913 | -9/Materials | Build established: Mutant 4169 | -9/Materials | Entered Mines 4295 | -9/Mines | Assembled infested the area 4301 | -9/Mines | Assisted by bots powering up and referring to "LRC-V3" 4377 | -9/Mines | Met 8R-AWN 4419 | -9/Mines | Discovered new exit (range 5) 4565 | -9/Mines | Discovered new exit (range 5) 4760 | -9/Mines | Learned Materials terminal intel 4767 | -9/Mines | Lost 3 allies 4837 | -9/Mines | Found the Drone Emporium 4846 | -9/Mines | Found Prototype Device 4846 | -9/Mines | Identified Sensor Drone Bay 5108 | -9/Mines | Found a hidden stash of uninstalled traps 5113 | -9/Mines | Discovered new exit (range 12) 5504 | -9/Mines | Entered Exiles 5547 | -9/Exiles | Welcomed by 8R-AWN 5576 | -9/Exiles | Met EX-HEX 5653 | -9/Exiles | Met EX-DEC 5712 | -9/Exiles | Met EX-BIN 5774 | -9/Exiles | Learned location of Zion (-6) 5828 | -9/Exiles | Discovered new exit (range 10) 5844 | -9/Exiles | Entered Mines 6261 | -8/Mines | Core integrity fell below 50% 6295 | -8/Mines | Discovered new exit (range 6) 6321 | -8/Mines | Entered Materials 6321 | -8/Materials | Evolved 2 slots: Utility x2 6322 | -8/Materials | Loaded intel: 12 terminal locations 6942 | -8/Materials | Build established: Scavenger-Mutant 7138 | -8/Materials | Discovered new exit (range 11) 7144 | -8/Materials | Identified exit to Storage 7378 | -8/Materials | Entered Storage 7405 | -8/Storage | Lost 4 parts (1p2u1w) 7787 | -8/Storage | Build established: Mutant 7933 | -8/Storage | Found Prototype Launcher 7933 | -8/Storage | Identified Gui. Missile Launcher 7965 | -8/Storage | Discovered new exit (range 10) 8533 | -8/Storage | Used back door to open Recycling access 8533 | -8/Storage | Discovered new exit (range 5) 9085 | -8/Storage | Build established: Scavenger-Mutant 9458 | -8/Storage | Assisted by bots powering up and referring to "LRC-V3" 9685 | -8/Storage | Entered Recycling 9685 | -8/Recycling | Accompanied by 10 allies 9761 | -8/Recycling | Build established: Commander-Mutant 10056 | -8/Recycling | Discovered new exit (range 16) 10543 | -8/Recycling | Learned 12 Factory zone layouts 10579 | -8/Recycling | Learned location of 2 exits from Factory 10606 | -8/Recycling | Learned location of 2 exits from Factory 10624 | -8/Recycling | Learned Storage emergency access door positions 10631 | -8/Recycling | Learned location of Lower Caves (-7) 10658 | -8/Recycling | Learned Factory stockpile data 10685 | -8/Recycling | Learned location of 1 exit from Lower Caves 10718 | -8/Recycling | Scanned before Scraplab entrance 10746 | -8/Recycling | Entered Scraplab 10762 | -8/Recycling | Discovered new exit (range 3) 10791 | -8/Recycling | Entered Scraptown 10791 | -8/Scraptown | Accompanied by 14 allies 10791 | -8/Scraptown | System corruption cleaned by C-Scrubber 10792 | -8/Scraptown | Identified exit to Factory 11109 | -8/Scraptown | Heard Great Nut preacher, LISTEN AND RECITE! 11304 | -8/Scraptown | Visited The Evicted 11324 | -8/Scraptown | Visited Cyclists 11394 | -8/Scraptown | Visited Symbiants 11420 | -8/Scraptown | Visited Red Mages 11444 | -8/Scraptown | Visited Science Testing Area 11518 | -8/Scraptown | Visited UFD Registry 11518 | -8/Scraptown | Registered with UFD as "Bladespawn" 11556 | -8/Scraptown | Visited Scrapoid Research Area 11605 | -8/Scraptown | Visited Modified Component R&D 11658 | -8/Scraptown | Visited Science Guys 11708 | -8/Scraptown | Visited Abandonware Association 11730 | -8/Scraptown | Learned abandonware demo "SHUTEYE.EXE" 11730 | -8/Scraptown | Learned abandonware demo "MELTYB.EXE" 11765 | -8/Scraptown | Visited Curators Association 11785 | -8/Scraptown | Visited Supply Room 11821 | -8/Scraptown | Visited Infowarlord's Domain 11827 | -8/Scraptown | Found Exp. Signal Interpreter 11854 | -8/Scraptown | Visited Scrap Suit Storage 11876 | -8/Scraptown | Visited Observation Area 11896 | -8/Scraptown | Visited Junk Repository 12265 | -8/Scraptown | Met Optimus 12265 | -8/Scraptown | Accepted into 0bPrime 12357 | -8/Scraptown | Entered Factory 12357 | -6/Factory | Accompanied by 14 allies 12357 | -6/Factory | Evolved 4 slots: Propulsion x2, Utility x2 12358 | -6/Factory | Identified exit to Factory 12358 | -6/Factory | Identified exit to Lower Caves 12608 | -6/Factory | Lost 9 allies 12857 | -6/Factory | Repaired Imp. Flight Unit 12896 | -6/Factory | Repaired Imp. Light Armor Plating? 12967 | -6/Factory | Loaded intel: 8 recycling unit locations 13028 | -6/Factory | Crushed by falling debris 13096 | -6/Factory | Found Exp. Targeting Computer 13097 | -6/Factory | Fabricated Imp. System Shield? 13152 | -6/Factory | Fabricated ECM Suite (x2) 13314 | -6/Factory | Sucked down chute 13314 | -6/Factory | Entered Waste 13315 | -6/Waste | Joined by Warlord forces that had cleared the area 13352 | -6/Waste | Murdered 3 allies 13367 | -6/Waste | Discovered new exit (range 16) 13413 | -6/Waste | Build established: Hacker-Sprinter 13500 | -6/Waste | Identified exit to Factory 13527 | -6/Waste | Entered Factory 13527 | -6/Factory | Accompanied by 9 allies 13583 | -6/Factory | Repaired Lrn. Missile Launcher+ 13692 | -6/Factory | Repaired Exp. Sensor Array? 13737 | -6/Factory | Fabricated Cld. VTOL Module (x1) 13792 | -6/Factory | Fabricated Cld. VTOL Module (x1) 13795 | -6/Factory | Loaded intel: 8 recycling unit locations 13795 | -6/Factory | Learned location of Protoforge (-2) 13926 | -6/Factory | Discovered exit to Factory (range 14) 13984 | -6/Factory | Central database locked down 14072 | -6/Factory | Repaired Hyp. Railgun 14205 | -6/Factory | Discovered exit to Factory (range 4) 14428 | -6/Factory | Entered Lower Caves 14429 | -6/Lower Caves | Identified exit to Lower Caves 14494 | -6/Lower Caves | Entered a destroyed Warlord outpost 14634 | -6/Lower Caves | Entered another Lower Caves area 14665 | -6/Lower Caves | Learned Factory non-interactive machine intel 14705 | -6/Lower Caves | Found DCF Scrap (15 items) 14783 | -6/Lower Caves | Entered an active Warlord outpost 14826 | -6/Lower Caves | Learned 8 Factory zone layouts 14826 | -6/Lower Caves | Learned Extension garrison access intel 14837 | -6/Lower Caves | Discovered new exit (range 10) 14856 | -6/Lower Caves | Identified exit to Zion 14856 | -6/Lower Caves | Entered Zion 14864 | -6/Zion | System corruption cleaned by Quarantine Array 14880 | -6/Zion | Discovered new exit (range 10) 14912 | -6/Zion | Found CR-A16's Pointy Stick 14945 | -6/Zion | Learned Factory stockpile data 14958 | -6/Zion | Acquired unknown access codes intercepted by a Zionite 14970 | -6/Zion | Turned away by Imprinter 14993 | -6/Zion | Given the Hacking Drone Bay 15076 | -6/Zion | Visited the Megawrench Repair Shop 15076 | -6/Zion | Megawrench repaired 6 parts 15134 | -6/Zion | Found Prototype Device 15134 | -6/Zion | Identified Phasing AFG 15251 | -6/Zion | Gained Derelict followers 15275 | -6/Zion | Identified exit to Proximity Caves 15276 | -6/Zion | Entered Proximity Caves 15276 | -5/Proximity Caves | Accompanied by 2 allies 15346 | -5/Proximity Caves | Learned Factory stockpile data 15634 | -5/Proximity Caves | Discovered exit to Factory (range 9) 15645 | -5/Proximity Caves | Entered Factory 15645 | -5/Factory | Evolved 2 slots: Utility x2 15646 | -5/Factory | Identified exit to Extension 15649 | -5/Factory | Loaded intel: 210 non-interactive machine locations 15652 | -5/Factory | Loaded intel: 8 recycling unit locations 15781 | -5/Factory | Discovered new exit (range 13) 15830 | -5/Factory | Identified exit to Factory 15835 | -5/Factory | Identified exit to Upper Caves 16074 | -5/Factory | Unchained authorized (6S-H0T) 16141 | -5/Factory | Learned location of 2 exits from Research 16195 | -5/Factory | Learned Research trap positions 16206 | -5/Factory | Learned Testing emergency access door positions 16208 | -5/Factory | Learned 4 Research zone layouts 16209 | -5/Factory | Learned 4 Extension zone layouts 16220 | -5/Factory | Learned 4 Proximity Caves zone layouts 16242 | -5/Factory | Learned location of Proximity Caves (-5) 16245 | -5/Factory | Manually triggered Chute Trap 16245 | -5/Factory | Sucked down chute 16245 | -5/Factory | Entered Waste 16247 | -5/Waste | Spotted C-40 Crusher 16253 | -5/Waste | Spotted C-40 Crusher 16255 | -5/Waste | Spotted C-40 Crusher 16257 | -5/Waste | Spotted C-40 Crusher 16257 | -5/Waste | Discovered new exit (range 11) 16257 | -5/Waste | Spotted C-40 Crusher 16259 | -5/Waste | Identified exit to Factory 16260 | -5/Waste | Entered Factory 16416 | -5/Factory | Unchained authorized (6S-H0T) 16749 | -5/Factory | Lost 5 parts (4u1w) 16765 | -5/Factory | Spotted B-75 Beast 16796 | -5/Factory | Core integrity fell below 50% 16817 | -5/Factory | Lost 5 parts (1p4n) 16859 | -5/Factory | Discovered exit to Factory (range 7) 16862 | -5/Factory | Entered another Factory area 16862 | -4/Factory | Evolved 2 slots: Power x1, Propulsion x1 16891 | -4/Factory | Lost 3 parts (1p1n1u) 16975 | -4/Factory | Repaired Imp. Light Armor Plating 17001 | -4/Factory | Central database locked down 17003 | -4/Factory | Discovered new exit (range 5) 17054 | -4/Factory | Unchained authorized (6S-H0T) 17075 | -4/Factory | Build established: Hacker-Mutant 17180 | -4/Factory | Destroyed 6S-H0T 17211 | -4/Factory | Lost 7 parts (1p4n2u) 17429 | -4/Factory | Found Quantum Capacitor 17493 | -4/Factory | Fabricated Cld. Cesium-ion Thruster (x1) 17575 | -4/Factory | Fabricated Cld. Cesium-ion Thruster? 17651 | -4/Factory | Lost 4 parts (2p2n) 17862 | -4/Factory | Adv. Hacking Suite fried by hacking feedback 17881 | -4/Factory | Loaded intel: 8 recycling unit locations 17883 | -4/Factory | Discovered new exit (range 11) 18112 | -4/Factory | Search patrols dispatched 18128 | -4/Factory | Spotted B-86 Titan 18148 | -4/Factory | System corruption reached 10% 18275 | -4/Factory | Core integrity fell below 50% 18301 | -4/Factory | Discovered new exit (range 4) 18304 | -4/Factory | Identified exit to Upper Caves 18305 | -4/Factory | Entered Upper Caves 18335 | -4/Upper Caves | Lost 6 parts (2n4u) 18358 | -4/Upper Caves | Learned location of Testing (-2) 18364 | -4/Upper Caves | Encountered a Warlord checkpoint 18706 | -4/Upper Caves | A Derelict revealed a hidden shortcut to "reach the base" 18716 | -4/Upper Caves | Identified exit to Warlord 18730 | -4/Upper Caves | Entered Warlord 18748 | -4/Warlord | System corruption cleaned by Quarantine Array 19040 | -4/Warlord | Visited the Vortex Lab 19043 | -4/Warlord | Found Prototype Energy Cannon 19043 | -4/Warlord | Identified Vortex Cannon 19047 | -4/Warlord | Found Prototype Energy Cannon 19047 | -4/Warlord | Identified Vortex Driver 19060 | -4/Warlord | Warlord's base attacked by MAIN.C 19117 | -4/Warlord | Found Prototype Processor 19117 | -4/Warlord | Identified Exp. Target Analyzer 19165 | -4/Warlord | Rebuked by Warlord 19208 | -4/Warlord | Opened side exit 19374 | -4/Warlord | Build established: Hacker-Sprinter 19410 | -4/Warlord | Warlord forces counterattacked 19504 | -4/Warlord | Spotted Striker 19515 | -4/Warlord | Destroyed Striker 19522 | -4/Warlord | Spotted Executioner 19523 | -4/Warlord | Spotted Executioner 19527 | -4/Warlord | Discovered new exit (range 9) 19529 | -4/Warlord | Identified exit to Proximity Caves 19529 | -4/Warlord | Entered Proximity Caves 19554 | -3/Proximity Caves | Lost 6 allies 19700 | -3/Proximity Caves | Core integrity fell below 20% 19749 | -3/Proximity Caves | Lost 3 parts (1p1n1u) 19885 | -3/Proximity Caves | Discovered new exit (range 2) 19885 | -3/Proximity Caves | Identified exit to Research 19885 | -3/Proximity Caves | Entered Research 19885 | -3/Research | Evolved 2 slots: Propulsion x1, Utility x1 19886 | -3/Research | Identified exit to Quarantine 19886 | -3/Research | Identified exit to Research 19888 | -3/Research | Loaded intel: 73 trap records 20061 | -3/Research | Loaded intel: 5 recycling unit locations 20135 | -3/Research | Search patrols dispatched 20183 | -3/Research | Lost 10 parts (2p2n5u1w) 20319 | -3/Research | Core integrity fell below 50% 20385 | -3/Research | Search patrols dispatched 20459 | -3/Research | Spotted B-90 Cyclops 20476 | -3/Research | Entered Quarantine 20526 | -3/Quarantine | Repaired Impulse Thruster Array+ 20610 | -3/Quarantine | Cryocooling Duct disabled 20620 | -3/Quarantine | Found Alien Artifact 20625 | -3/Quarantine | Ambient heat levels rising (+20) 20625 | -3/Quarantine | Non-combat units ordered to evacuate 20639 | -3/Quarantine | Found Alien Artifact 20726 | -3/Quarantine | Search patrols dispatched 20767 | -3/Quarantine | Found Alien Impact Weapon 20804 | -3/Quarantine | Found Alien Reactor 20815 | -3/Quarantine | Discovered exit to Research (range 11) 20972 | -3/Quarantine | Found Alien Artifact 20975 | -3/Quarantine | Identified Subatomic Replicator 20975 | -3/Quarantine | Used Subatomic Replicator to create Alien Artifact 21062 | -3/Quarantine | Repaired Field Propulsion Array+ 21073 | -3/Quarantine | Entered Research 21073 | -2/Research | Evolved 2 slots: Utility x2 21117 | -2/Research | Garrison activated, responded to threat 21149 | -2/Research | Loaded intel: 5 recycling unit locations 21157 | -2/Research | Identified Supercharged TR 21157 | -2/Research | Identified Dimensional Node Initializer 21157 | -2/Research | Identified Matter Drive 21272 | -2/Research | Identified exit to Testing 21325 | -2/Research | Discovered new exit (range 13) 21437 | -2/Research | Spotted B-90 Cyclops 21445 | -2/Research | Entered Testing 21477 | -2/Testing | Found Exp. Signal Interpreter 21490 | -2/Testing | Found Prototype Launcher 21499 | -2/Testing | Found Prototype Launcher 21518 | -2/Testing | Identified Enh. Gamma Bomb Array (x2) 21584 | -2/Testing | Discovered new exit (range 16) 21609 | -2/Testing | Found Mni. Smartbomb Launcher 21666 | -2/Testing | Found Prototype Device 21666 | -2/Testing | Identified Exp. Hardlight Generator 21764 | -2/Testing | Protovariant out of control (PH-RFI3T45IKC) 21764 | -2/Testing | Unleashed a protovariant (PH-RFI3T45IKC) 21860 | -2/Testing | Repaired Graviton Reactor 21891 | -2/Testing | Spotted Fortress 21908 | -2/Testing | Discovered new exit (range 5) 21908 | -2/Testing | Discovered new exit (range 6) 21909 | -2/Testing | Identified exit to Protoforge 21910 | -2/Testing | Entered Protoforge 22139 | -2/Protoforge | Spotted B-90 Cyclops 22140 | -2/Protoforge | Superfortress began startup sequence 22215 | -2/Protoforge | Found Prototype Storage 22215 | -2/Protoforge | Identified Cep. NT7 Matterbank 22243 | -2/Protoforge | Additional patrols dispatched to research labs 22249 | -2/Protoforge | Crushed by falling debris 22253 | -2/Protoforge | Spotted Decapitator 22253 | -2/Protoforge | Spotted Decapitator 22277 | -2/Protoforge | Destroyed Decapitator 22284 | -2/Protoforge | Destroyed Decapitator 22303 | -2/Protoforge | Lost 9 parts (2p1n5u1w) 22416 | -2/Protoforge | Spotted EXE-6 22416 | -2/Protoforge | Spotted EXE-6 22427 | -2/Protoforge | UFD initiated attack on Protoforge (Readiness: Maximal) 22427 | -2/Protoforge | Loaded intel: 3 recycling unit locations 22448 | -2/Protoforge | Found Exp. Core Analyzer 22450 | -2/Protoforge | Found Prototype Ballistic Gun 22450 | -2/Protoforge | Identified Cep. XC Strikerail 22453 | -2/Protoforge | Found Cep. XC Strikerail 22457 | -2/Protoforge | Found Cep. XC Strikerail 22459 | -2/Protoforge | Found Exp. Core Analyzer 22463 | -2/Protoforge | Optimus greeted in Protoforge 22470 | -2/Protoforge | Found Dimensional Node Initializer 22471 | -2/Protoforge | Initialized slip node 22475 | -2/Protoforge | Spotted Decapitator 22476 | -2/Protoforge | Spotted Decapitator 22479 | -2/Protoforge | Destroyed Decapitator 22510 | -2/Protoforge | Lost 5 allies 22517 | -2/Protoforge | Warped through subspace to slip node 22518 | -2/Protoforge | Optimus attacked Superfortress 22532 | -2/Protoforge | Spotted Striker 22541 | -2/Protoforge | Spotted Striker 22545 | -2/Protoforge | Lost 3 parts (1n1u1w) 22548 | -2/Protoforge | Found Prototype Power Core 22548 | -2/Protoforge | Identified Cep. Zero-point Core 22551 | -2/Protoforge | Found Prototype Device 22551 | -2/Protoforge | Identified Cep. Antimissile System 22570 | -2/Protoforge | Forge Plexus network access discovered 22573 | -2/Protoforge | Lost 30 allies 22587 | -2/Protoforge | Spotted AP7-3 22587 | -2/Protoforge | Spotted AP7-3 22623 | -2/Protoforge | Lost 3 allies 22723 | -2/Protoforge | Found Cep. Concussive Dispersal Blaster 22734 | -2/Protoforge | Spotted Striker 22735 | -2/Protoforge | Spotted Striker 22736 | -2/Protoforge | Found Cep. Concussive Dispersal Blaster 22739 | -2/Protoforge | Spotted Executioner 22742 | -2/Protoforge | UFD reported confirmed Drillbomb installation 22814 | -2/Protoforge | Found UFD Drillbomb 22883 | -2/Protoforge | Installed UFD Drillbomb at designated target 22883 | -2/Protoforge | UFD reported confirmed Drillbomb installation 22914 | -2/Protoforge | Build established: Scavenger-Scout 22915 | -2/Protoforge | Found UFD Drillbomb 22961 | -2/Protoforge | Spotted Executioner 22993 | -2/Protoforge | Installed UFD Drillbomb at designated target 22993 | -2/Protoforge | UFD reported confirmed Drillbomb installation 23036 | -2/Protoforge | Found UFD Drillbomb 23056 | -2/Protoforge | Spotted Striker 23057 | -2/Protoforge | Spotted Striker 23058 | -2/Protoforge | Spotted Executioner 23060 | -2/Protoforge | Spotted Executioner 23062 | -2/Protoforge | Spotted Striker 23067 | -2/Protoforge | Spotted Executioner 23075 | -2/Protoforge | Spotted Striker 23075 | -2/Protoforge | Spotted Striker 23104 | -2/Protoforge | Destroyed Striker 23124 | -2/Protoforge | Installed UFD Drillbomb at designated target 23124 | -2/Protoforge | UFD reported confirmed Drillbomb installation 23125 | -2/Protoforge | Lost 4 allies 23179 | -2/Protoforge | Spotted Hotshot 23180 | -2/Protoforge | Spotted Executioner 23180 | -2/Protoforge | Spotted Hotshot 23218 | -2/Protoforge | Installed UFD Drillbomb at designated target 23218 | -2/Protoforge | UFD reported confirmed Drillbomb installation 23220 | -2/Protoforge | Found UFD Drillbomb 23222 | -2/Protoforge | Core integrity fell below 50% 23226 | -2/Protoforge | Spotted Hotshot 23226 | -2/Protoforge | Spotted Hotshot 23246 | -2/Protoforge | Installed UFD Drillbomb at designated target 23246 | -2/Protoforge | UFD reported confirmed Drillbomb installation 23282 | -2/Protoforge | Lost 4 allies 23293 | -2/Protoforge | Destroyed Hotshot 23298 | -2/Protoforge | Destroyed Hotshot 23319 | -2/Protoforge | Destroyed Hotshot 23328 | -2/Protoforge | Spotted Executioner 23337 | -2/Protoforge | Spotted Executioner 23338 | -2/Protoforge | Spotted Executioner 23385 | -2/Protoforge | Found UFD Drillbomb 23388 | -2/Protoforge | Lost 4 allies 23399 | -2/Protoforge | Spotted Hotshot 23419 | -2/Protoforge | Destroyed Hotshot 23448 | -2/Protoforge | UFD reported confirmed Drillbomb installation 23608 | -2/Protoforge | Spotted Immortal 23608 | -2/Protoforge | Spotted Immortal 23623 | -2/Protoforge | Discovered new exit (range 5) 23634 | -2/Protoforge | Installed UFD Drillbomb at designated target 23634 | -2/Protoforge | UFD reported confirmed Drillbomb installation 23750 | -2/Protoforge | Spotted Executioner 23781 | -2/Protoforge | Found UFD Drillbomb 23803 | -2/Protoforge | Spotted Executioner 23807 | -2/Protoforge | Spotted Executioner 23813 | -2/Protoforge | Spotted Striker 23843 | -2/Protoforge | Installed UFD Drillbomb at designated target 23843 | -2/Protoforge | UFD reported confirmed Drillbomb installation 23876 | -2/Protoforge | Installed UFD Drillbomb at designated target 23876 | -2/Protoforge | UFD reported confirmed Drillbomb installation 23877 | -2/Protoforge | UFD began Drillbomb countdown 23977 | *** | Defending 0bPrime! Last Messages --------------- Forge Plexus. 23973_ 0bP_NET: DD-05H though, you were a good one, we'll never forget the way you smashed your way west and just never stopped smashing. 23973_ N-04 Retriever inserts Xenon Bombardment Thruster into Forge Plexus. 23973_ N-04 Retriever inserts Ovr. Medium Treads into Forge Plexus. 23974_ 0bP_NET: Well my eulogizing is soon to be interrupted by scenes of half of Protoforge collapsing in on itself. Be careful out there. 23974_ N-04 Retriever inserts Lgt. Antimatter Reactor into Forge Plexus. 23975_ 0bP_NET: T-2! 23975_ N-04 Retriever inserts Exp. Optical Array into Forge Plexus. 23976_ 0bP_NET: And that's a wrap. 23976_ N-04 Retriever inserts Exp. Core Analyzer into Forge Plexus. [Achievement: Robotopia] Map ----- +----------------------------------------------------+ | """""""""""""""""""" " % """ " "#?#"""""#???? | | """""""""""""""""""" "" %""= " "#?#"""""#???? | | """""""""""""""""""" " " %! " "#?#######???? | | """"""""""""""""""""" ""! " #???????????? | | """""""""""""""""""""%%%!%! 3 "" "#???????????? | | """""""""""""""""""""% % %% " "#???????????? | | """"""""""""""""""""" %%%% % " #???????????? | | """"""""""""""""""""" #???????????? | | """""""""""""""""""""n % % % ##??????????? | | """""""""""""""""""""% s " #??????????? | | """"""""""""""""""""" % "% s "" #??????????? | | """"""""""""""""""""" " %% %" " ##??????????? | | """""""""""""""""""" % "%E " "#???????????? | | """""""""""""""""""" % #???????????? | | """""""""""""""""""" "" s"SS #???????????? | | """"""""""""""""""" " %SS #???????????? | | """""""""""""""""" "" % "" #???????????? | | """"""""""""""""" " %% % """ #???????????? | | """""""""""""""" % " #???????????? | | """"""""""""""" "" % % #???????????? | | """""""""""""" "" "" s % #???????????? | | """"""""" "" * %% %% % #???????????? | | % ss"s " " s %% %% #???#???????? | | %% ss % j % % ### #???????? | | % % SS %%#*# #???????? | | "sss% SS @ % %&#?????????? | | % % !" SS % <&##????????? | | SS%%!ssSS % <& #????????? | | %%SS E%s " " <& #????????? | | % E &SS s " *&&####??????? | | %%%SS s % "" % "" %<& #??????? | | %A"" s " ######??????? | | T s " " #???????????? | | " " #???????????? | | """" " " """ #???????????? | | " " " """ #???????????? | | """""""" " " " " """""""#???????????? | | ########################+++###########???????????? | | ???????????????????#"" ""#?????????????????? | | ?????????????????###" "###???????????????? | | ?????????????????#"" ""#???????????????? | | ?????????????????#"" ""#???????????????? | | ?????????????????#"" ""#???????????????? | | ?????????????????#"Y Y"#???????????????? | | ?????????????????#"" ""#???????????????? | | ?????????????????#"" ""#???????????????? | | ?????????????????#"" ""#???????????????? | | ?????????????????###" "###???????????????? | | ???????????????????#"" ""#?????????????????? | | ???????????????????###"""Y"""###?????????????????? | +----------------------------------------------------+ Best States ------------- Heat Dissipation 101 Coolant Potential 80 Energy Generation 57 Energy Capacity 1070 Matter Stores 300 Matter Capacity 300 Sight Range 23 Robot Scan Range 20 Terrain Scan Range 24 Terrain Scan Density 85 ECM Strength 1 Jamming Range 12 Additional Mass Support 9 Base Temperature (-) 200 Corruption Block 15 Armor Coverage 300 Resistance: TH 10 Core Shielding 30 Propulsion Shielding 33 Weapon Shielding 66 Evasion (%) 77 Targeting Accuracy 12 Melee Accuracy 6 Launcher Accuracy 40 Target Analysis 10 Core Analysis 12 Recoil Reduction 4 Kinecelleration 30 Offensive Hacking 48 Defensive Hacking 12 Authchip Count 1 Item Schematics ----------------- Exp. Sensor Array | -9/Materials | Scanalyzed Cmb. Airjet | -8/Materials | Scanalyzed Hacking Suite | -8/Storage | Hacked ECM Suite | -8/Storage | Hacked Microactuators | -8/Recycling | Hacked Imp. System Shield | -6/Factory | Hacked Lrn. Missile Launcher | -6/Factory | Scanalyzed Imp. Light Armor Plating | -6/Factory | Scanalyzed Cld. VTOL Module | -6/Factory | Hacked Cld. Cesium-ion Thruster | -6/Factory | Hacked Imp. Shock Absorption System | -6/Zion | Archive Thermal Shield | -6/Zion | Archive KE Penetrator | -6/Zion | Archive Plasma Rifle | -6/Zion | Archive Matter Neutralizer | -6/Zion | Archive Imp. Thermal Shield | -6/Zion | Archive Imp. Hardlight Generator | -6/Zion | Archive Stasis Canceller | -6/Zion | Archive Lyr. Heavy Armor Plating | -6/Zion | Archive Adv. Signal Interpreter | -6/Zion | Archive Adv. Recoil Stabilizer | -6/Zion | Archive Hpw. Shock Rifle | -6/Zion | Archive Adv. Reaction Control System | -6/Zion | Archive Adv. Transmission Jammer | -4/Factory | Hacked Robot Schematics ------------------ G-47 Trooper | -8/Storage | Hacked A-02 Transporter | -6/Zion | Archive T-07 Excavator | -6/Zion | Archive H-88 Terminator | -6/Zion | Archive Fabricated ------------ Imp. System Shield | x1 | -6/Factory | Authchip ECM Suite | x2 | -6/Factory Cld. VTOL Module | x1 | -6/Factory | Authchip Cld. VTOL Module | x1 | -6/Factory Cld. Cesium-ion Thruster | x1 | -4/Factory | Authchip Cld. Cesium-ion Thruster | x1 | -4/Factory Repaired ---------- Imp. Flight Unit | 5% | -6/Factory Imp. Light Armor Plating | 41% | -6/Factory Lrn. Missile Launcher | 51% | -6/Factory Exp. Sensor Array | 62% | -6/Factory Hyp. Railgun | 69% | -6/Factory Imp. Light Armor Plating | 13% | -4/Factory Impulse Thruster Array | 3% | -3/Quarantine Field Propulsion Array | 62% | -3/Quarantine Graviton Reactor | 13% | -2/Testing Studied --------- Lgt. Treads | -9/Materials | Hacked Shotgun | -9/Materials | Hacked Hvy. Assault Rifle | -9/Materials | Hacked VTOL Module | -8/Materials | Hacked Lrn. Missile Launcher | -6/Factory | Hacked Lgt. Fission Core | -6/Factory | Hacked Field Propulsion Array | -4/Factory | Hacked Impulse Thruster Array | -3/Research | Hacked Matter Neutralizer | -3/Research | Hacked Mic. Antimatter Reactor | -3/Quarantine | Hacked Xenon Bombardment Thruster | -3/Quarantine | Hacked Lgt. Particle Reactor | -3/Quarantine | Hacked Lgt. Antimatter Reactor | -2/Research | Hacked Q-thruster | -2/Research | Hacked Lgt. Quantum Reactor | -2/Research | Hacked Nuclear Pulse Array | -2/Protoforge | Hacked Alien Tech Used ----------------- Subatomic Replicator Matter Drive Dimensional Node Initializer Supercharged TR Achievements -------------- Robotopia Suspicious By Nature Challenges ------------ None Game ------ Seed ClaymoresHardenedMatrix Manual? 0 Play Time 04:24:47 Cumulative 2046.9 hours Start 2025.11.20 @ 01:34:06 End 2025.11.20 @ 05:58:58 Sessions 1 Manual Loads 0 Difficulty Rogue Special Mode None Game No. 1322 Rogue 1318 Adventurer 4 Explorer 0 Win Type 9 Total 276 Types 206/13/21/10/3/1/4/10/5/3 Lore% 98 Gallery% 96 Achievement% 86 Wizard Run 0 Options --------- Layout 2 ASCII 0 Keyboard 1 Movement Vi Keybinds 0 Fullscreen 0 Font 24/Terminus Map View 59x48 Zoom Use 0% Tactical HUD 1 Map Filters NONE Filters NONE Steam 1 RUN: 403e2b92-bc36-4f21-bdbe-c955c0e0457a